Workbook

Sheet Cover
B15: H1 2023 DATA OF PIRAEUS FINANCIAL HOLDINGS
D20: Financial Highlights | E20: 1
D21: EPS Calculations | E21: 2
D22: Consolidated Balance Sheet | E22: 3
D23: Analysis of Selected Balance Sheet Items | E23: 4
D24: Loans per Customer Type
D25: Securities
D26: Deposits per Product Type
D27: Customer Funds
D28: Consolidated P&L | E28: 5
D29: Net Interest Income | E29: 6
D30: Net Fee Income | E30: 7
D31: G&A Costs | E31: 8
D32: P&L Segment View | E32: 9
D33: Performing Loans | E33: 10
D34: Loan Portfolio Quality | E34: 11
D35: IFRS9 Stages | E35: 12
D36: NPE Flow Decomposition | E36: 13
D37: Capital Adequacy | E37: 14
D38: Other Information | E38: 15
D39: Branches
D40: Employees
D41: # Shares
D42: Share & Stock Market Data
D43: Ratings

Sheet Financial Highlights
N2: Back to Cover
B5: FINANCIAL HIGHLIGHTS
B8: (million €)
B9: PROFIT/(LOSS) | C9: Q1 2021 | D9: Q2 2021 | E9: Q3 2021 | F9: Q4 2021 | G9: Q1 2022 | H9: Q2 2022 | I9: Q3 2022 | J9: Q4 2022 | K9: Q1 2023 | L9: Q2 2023 | M9: H1 2022 | N9: H1 2023
B10: Net interest income | C10: 365.521 | D10: 406.729 | E10: 319.035 | F10: 318.281 | G10: 285.895 | H10: 305.568 | I10: 330.592 | J10: 430.647 | K10: 446.866 | L10: 487.8 | M10: 591.463 | N10: 934.666
B11: Net fee income | C11: 82.45766923 | D11: 109.6832261 | E11: 112.8187844 | F11: 126.6940906 | G11: 112.742032 | H11: 120.9729823 | I11: 125.3173056 | J11: 125.82768 | K11: 121.647 | L11: 141.406 | M11: 233.7150144 | N11: 263.053
B12: of which acquiring fees | C12: 7.49031077 | D12: 9.15917554 | E12: 11.09546903 | F12: 10.95343818 | G12: 7.02271175 | H12: -0.5933471 | I12: -0.10188484 | J12: -0.67009459 | K12: 0 | L12: 0 | M12: 6.42936465 | N12: 0
B13: Trading & income | C13: 411.3983614 | D13: 89.08039567 | E13: -0.38139517 | F13: 181.6388452 | G13: 583.028 | H13: 84.309 | I13: 57.356 | J13: 19.568 | K13: 8.274 | L13: 32.772 | M13: 667.337 | N13: 41.046
B14: of which one off items | C14: 387.2 | D14: 91.383966 | E14: 0 | F14: 184.5 | G14: 510.7 | H14: 109.277 | I14: 52 | J14: 0 | K14: 0 | L14: 0 | M14: 619.977 | N14: 0
B15: Net Revenues | C15: =C10+C11+C13 -> 859.3770306 | D15: =D10+D11+D13 -> 605.4926218 | E15: 431.4723892 | F15: 626.6139357 | G15: =G10+G11+G13 -> 981.665032 | H15: 510.8499823 | I15: 513.2653056 | J15: =J10+J11+J13 -> 576.04268 | K15: =K10+K11+K13 -> 576.787 | L15: =L10+L11+L13 -> 661.978 | M15: =M10+M11+M13 -> 1492.515014 | N15: =N10+N11+N13 -> 1238.765
B16: Staff costs | C16: -96.847 | D16: -136.48 | E16: -95.392 | F16: -75.997 | G16: -91.201 | H16: -101.155 | I16: -121.266 | J16: -131.956 | K16: -96.719 | L16: -96.57 | M16: -192.356 | N16: -193.289
B17: General Expenses | C17: -87.3667617 | D17: -88.47174215 | E17: -97.35219106 | F17: -103.9513169 | G17: -81.31903205 | H17: -87.15198231 | I17: -85.18530565 | J17: -83.88267999 | K17: -83.157 | L17: -78.429 | M17: -168.4710144 | N17: -161.586
B18: Depreciation | C18: -27.59 | D18: -27.921 | E18: -27.63 | F18: -27.091 | G18: -29.592 | H18: -24.891 | I18: -25.213 | J18: -25.965 | K18: -26.147 | L18: -26.212 | M18: -54.483 | N18: -52.359
B19: Total OpEx | C19: =SUM(C16:C18) -> -211.8037617 | D19: =SUM(D16:D18) -> -252.8727421 | E19: -220.3741911 | F19: -207.0393169 | G19: -202.112032 | H19: =SUM(H16:H18) -> -213.1979823 | I19: =SUM(I16:I18) -> -231.6643056 | J19: =SUM(J16:J18) -> -241.80368 | K19: =SUM(K16:K18) -> -206.023 | L19: -201.211 | M19: -415.3100144 | N19: -407.234
B20: of which one off items | C20: 0 | D20: -40 | E20: 0 | F20: 15.199 | G20: -4.14727088 | H20: -6.6 | I20: -19.87765 | J20: -30.314 | K20: -3.172 | L20: -2.174507 | M20: -10.74727088 | N20: -5.346507
B21: Pre Provision Income reported | C21: =C15+C19 -> 647.5732689 | D21: =D15+D19 -> 352.6198796 | E21: =E15+E19 -> 211.0981982 | F21: 419.5746188 | G21: 779.553 | H21: =H15+H19 -> 297.652 | I21: =I15+I19 -> 281.601 | J21: 334.239 | K21: 370.764 | L21: 460.767 | M21: 1077.205 | N21: 831.531
B22: Pre Provision Income normalized | C22: =C21-C14-C20-C12 -> 252.8829581 | D22: 292.0767381 | E22: 200.0027291 | F22: 208.9221806 | G22: =G21-G14-G20-G12 -> 265.9775591 | H22: 195.5683471 | I22: 249.5805348 | J22: 365.2230946 | K22: =K21-K14-K20-K12 -> 373.936 | L22: =L21-L14-L20-L12 -> 462.941507 | M22: =M21-M14-M20-M12 -> 461.5459062 | N22: =N21-N14-N20-N12 -> 836.877507
B23: Impairments for loans | C23: -974.6795251 | D23: -2292.115085 | E23: -818.1808608 | F23: -199.0307127 | G23: -229.729 | H23: -190.241 | I23: -91.523 | J23: -103.126 | K23: -95.394 | L23: -283.028 | M23: -419.97 | N23: -378.422
B24: of which inorganic | C24: -829.04671 | D24: -2185 | E24: -734 | F24: -126 | G24: -151.6 | H24: -117.35 | I24: -18.381 | J24: -33.1 | K24: -20.761 | L24: -180.799114 | M24: -268.95 | N24: -201.560114
B25: Other impairments & associates' income | C25: -30.466 | D25: -40.415 | E25: 3.878 | F25: 29.008 | G25: -7.738 | H25: -14.417 | I25: -18.78 | J25: -0.595 | K25: -20.998 | L25: -43.989 | M25: -22.155 | N25: -64.987
B26: of which one off items1 | C26: 0 | D26: 0 | E26: 0 | F26: 0 | G26: 0 | H26: 0 | I26: 0 | J26: 25.8 | K26: 0 | L26: 0 | M26: 0 | N26: 0
B27: Profit Before Tax reported | C27: =C21+C23+C25 -> -357.5722562 | D27: =D21+D23+D25 -> -1979.910206 | E27: =E21+E23+E25 -> -603.2046627 | F27: 249.5519061 | G27: =G21+G23+G25 -> 542.086 | H27: =H21+H23+H25 -> 92.994 | I27: =I21+I23+I25 -> 171.298 | J27: =J21+J23+J25 -> 230.518 | K27: =K21+K23+K25 -> 254.372 | L27: =L21+L23+L25 -> 133.75 | M27: =M21+M23+M25 -> 635.08 | N27: =N21+N23+N25 -> 388.122
B28: Profit Before Tax normalized | C28: =C22+C23+C25-C24 -> 76.78414307 | D28: =D22+D23+D25-D24 -> 144.5466528 | E28: 119.6998683 | F28: 164.8994679 | G28: 180.1105591 | H28: =H22+H23+H25-H24 -> 108.2603471 | I28: =I22+I23+I25-I24 -> 157.6585348 | J28: =J22+J23+J25-J24-J26 -> 268.8020946 | K28: =K22+K23+K25-K24-K26 -> 278.305 | L28: =L22+L23+L25-L24-L26 -> 316.723621 | M28: =M22+M23+M25-M24-M26 -> 288.3709062 | N28: =N22+N23+N25-N24-N26 -> 595.028621
B29: Tax | C29: -46.384 | D29: -64.501 | E29: -32.261 | F29: -173.16 | G29: -22.04 | H29: -0.289 | I29: -55.846 | J29: -61.52 | K29: -75.64 | L29: -14.627 | M29: -22.329 | N29: -90.267
B30: Tax normalized3 | C30: 0 | D30: 0 | E30: 0 | F30: 0 | G30: -46.82874537 | H30: -28.14769025 | I30: -40.99121906 | J30: -69.88854459 | K30: -75.64 | L30: -79.18090525 | M30: -74.97643562 | N30: -154.8209053
B31: Minorities | C31: 0.088 | D31: 0.951 | E31: -0.096 | F31: -1.512 | G31: -1.217 | H31: 0.243 | I31: -0.194 | J31: -0.564 | K31: -1.029 | L31: -0.56 | M31: -0.974 | N31: -1.589
B32: Net Profit core | C32: =C27+C29-C24-C20-C13-C31-C12 -> 6.113781694 | D32: =D27+D29-D24-D20-D13-D31-D12 -> 81.39822309 | E32: 87.91626344 | F32: =F27+F29-F24-F20-F13-F31-F12 -> -3.887377272 | G32: =G27+G30-G24-G20-G13-G31-G12 -> 62.17081376 | H32: =H27+H30-H24-H20-H13-H31-H12 -> 104.8376569 | I32: =I27+I30-I24-I20-I13-I31-I12 -> 111.5053158 | J32: =J27+J30-J24-J20-J13-J31-J12-J26 -> 179.90955 | K32: =K27+K30-K24-K20-K13-K31-K12-K26 -> 195.42 | L32: =L27+L30-L24-L20-L13-L31-L12-L26 -> 205.3307158 | M32: =M27+M30-M24-M20-M13-M31-M12-M26 -> 167.0084706 | N32: =N27+N30-N24-N20-N13-N31-N12-N26 -> 400.7507158
B33: Trading & other income normalized | C33: 24.19836138 | D33: -2.30357033 | E33: -0.38139517 | F33: -2.86115482 | G33: 72.328 | H33: -24.968 | I33: 5.356 | J33: 19.568 | K33: 8.274 | L33: 32.772 | M33: 47.36 | N33: 41.046
B34: Net Profit normalized | C34: =C33+C32 -> 30.31214307 | D34: =D33+D32 -> 79.09465276 | E34: =E33+E32 -> 87.53486827 | F34: -6.748532092 | G34: 134.4988138 | H34: =H33+H32 -> 79.86965685 | I34: 116.8613158 | J34: 199.47755 | K34: 203.694 | L34: 238.1027158 | M34: 214.3684706 | N34: 441.7967158
B35: Net Profit from continuing operations attributable to SHs | C35: =C27+C29-C31 -> -404.0442562 | D35: =D27+D29-D31 -> -2045.362206 | E35: -635.3696627 | F35: 77.90390609 | G35: =G27+G29-G31 -> 521.263 | H35: =H27+H29-H31 -> 92.462 | I35: =I27+I29-I31 -> 115.646 | J35: =J27+J29-J31 -> 169.562 | K35: =K27+K29-K31 -> 179.761 | L35: =L27+L29-L31 -> 119.683 | M35: =M27+M29-M31 -> 613.725 | N35: =N27+N29-N31 -> 299.444
B37: BALANCE SHEET | C37: 2021-03-31 | D37: 2021-06-30 | E37: 2021-09-30 | F37: 2021-12-31 | G37: 2022-03-31 | H37: 2022-06-30 | I37: 2022-09-30 | J37: 2022-12-31 | K37: 2023-03-31 | L37: 2023-06-30 | M37: 2022-06-30 | N37: 2023-06-30
B38: Assets adjusted (excl. discontinued operations, seasonal OPEKEPE) | C38: 72001.418 | D38: 74922.199 | E38: 75306.578 | F38: 78201.007 | G38: 79384.396 | H38: 81755.794 | I38: 82656.068 | J38: 74143.31143 | K38: 74679.886 | L38: 76982.616 | M38: 81755.794 | N38: 76982.616
B39: Gross loans2 | C39: 47965.94358 | D39: 36762.0536 | E39: 35785.15374 | F39: 38581.1359 | G39: 37157.48481 | H39: 37012.81045 | I39: 37723.69932 | J39: 38849.67037 | K39: 36823.95331 | L39: 36987.84164 | M39: 37012.81045 | N39: 36987.84164
B40: of which NPEs2 | C40: 22154.89445 | D40: 9007.787381 | E40: 5985.519052 | F40: 4915.03697 | G40: 4721.739548 | H40: 3425.745327 | I40: 3331.291721 | J40: 2624.316229 | K40: 2441.552917 | L40: 2048.579632 | M40: 3425.745327 | N40: 2048.579632
B41: Net loans (excl. seasonal OPEKEPE)2 | C41: 37481.361 | D41: 33262.513 | E41: 33466.278 | F41: 35124.185 | G41: 35076.958 | H41: 35445.339 | I41: 36093.035 | J41: 35900.87743 | K41: 35464.218 | L41: 35823.852 | M41: 35445.339 | N41: 35823.852
B42: Tangible Equity | C42: 6320.593 | D42: 5546.925 | E42: 4845.016 | F42: 4920.532 | G42: 5303.916 | H42: 5312.394 | I42: 5426.126 | J42: 5640.784 | K42: 5825.1 | L42: 5920.188 | M42: 5312.394 | N42: 5920.188
B43: Total Equity | C43: 6699.006 | D43: 6537.144 | E43: 5836.167 | F43: 5802.791 | G43: 6189.02 | H43: 6212.824 | I43: 6354.025 | J43: 6580.656 | K43: 6765.215 | L43: 6892.644 | M43: 6212.824 | N43: 6892.644
B45: RATIOS & METRICS | C45: Q1.21 | D45: Q2.21 | E45: Q3.21 | F45: Q4.21 | G45: Q1.22 | H45: Q2.22 | I45: Q3.22 | J45: Q4.22 | K45: Q1 2023 | L45: Q2 2023 | M45: H1 2022 | N45: H1 2023
B46: Core EPS (€) adjusted for AT1 coupon | C46: =C32/1250.367223 -> 0.004889588899 | D46: =(D32-(2.014))/1250.367223 -> 0.06348872685 | E46: =(E32-(600*8.75%/4))/1250.367223 -> 0.05981543827 | F46: -0.0136059047 | G46: 0.03922512751 | H46: 0.07334857726 | I46: 0.07868113781 | J46: =(J32-(600*8.75%/4))/1250.367223 -> 0.1333884534 | K46: =(K32-(600*8.75%/4))/1250.367223 -> 0.1457931691 | L46: 0.1537194132 | M46: =G46+H46 -> 0.1125737048 | N46: =K46+L46 -> 0.2995125823
B47: Normalized EPS (€) adjusted for AT1 coupon | C47: =C34/1250.367223 -> 0.02424259251 | D47: =(D34-(2.014))/1250.367223 -> 0.06164641182 | E47: =(E34-(600*8.75%/4))/1250.367223 -> 0.05951041175 | F47: -0.01589415631 | G47: 0.09707053378 | H47: =(H34-(600*8.75%/4))/1250.367223 -> 0.05338004358 | I47: =(I34-(600*8.75%/4))/1250.367223 -> 0.08296467939 | J47: =(J34-(600*8.75%/4))/1250.367223 -> 0.1490382558 | K47: =(K34-(600*8.75%/4))/1250.367223 -> 0.1524104251 | L47: 0.1799293133 | M47: =G47+H47 -> 0.1504505774 | N47: =K47+L47 -> 0.3323397384
B48: Reported EPS (€) adjusted for AT1 coupon | C48: =(C35)/1250.367223 -> -0.3231404732 | D48: =(D35-(2.014))/1250.367223 -> -1.637419926 | E48: -0.5186433639 | F48: 0.05180790483 | G48: 0.4063910111 | H48: =(H35-(600*8.75%/4))/1250.367223 -> 0.06345095948 | I48: =(I35-(600*8.75%/4))/1250.367223 -> 0.08199271231 | J48: =(J35-(600*8.75%/4))/1250.367223 -> 0.1251128445 | K48: =(K35-(600*8.75%/4))/1250.367223 -> 0.1332696483 | L48: 0.0852213638 | M48: =G48+H48 -> 0.4698419706 | N48: =K48+L48 -> 0.2184910121
B49: RoaTBV normalized adjusted for AT1 coupon | C49: =(C34)*4/5524 -> 0.02194941569 | D49: =((D34*4)-28.264)/AVERAGE(C42:D42) -> 0.04855515889 | E49: =(E34*4-28.264)/AVERAGE(D42:E42) -> 0.06194713251 | F49: =(F34*4-28.264)/AVERAGE(E42:F42) -> -0.01131695392 | G49: =(G34-(600*8.75%/4))*4/AVERAGE(F42:G42) -> 0.09496752392 | H49: =(H34-(600*8.75%/4))*4/AVERAGE(G42:H42) -> 0.05029593661 | I49: =(I34-(600*8.75%/4))*4/AVERAGE(H42:I42) -> 0.07728164833 | J49: =(J34-(600*8.75%/4))*4/AVERAGE(I42:J42) -> 0.1347097248 | K49: =(K34-(600*8.75%/4))*4/AVERAGE(J42:K42) -> 0.1329641919 | L49: =(L34-(600*8.75%/4))*4/AVERAGE(K42:L42) -> 0.1532377687 | M49: =(M34*2-52.5)/(AVERAGE(F42,H42)) -> 0.07353457676 | N49: =(N34*2-52.5)/AVERAGE(J42,N42) -> 0.1437757018
B50: RoaA normalized adjusted for AT1 coupon | C50: =(C34)*4/((C38+69948)/2) -> 0.001708334898 | D50: =(D34*4-28.264)/((D38+C38)/2) -> 0.003921964582 | E50: =(E34*4-28.264)/((E38+D38)/2) -> 0.004285137369 | F50: =(F34*4-28.264)/((F38+E38)/2) -> -0.000719940039 | G50: =(G34-(600*8.75%/4))*4/((G38+F38)/2) -> 0.006161677995 | H50: =(H34-(600*8.75%/4))*4/((H38+G38)/2) -> 0.00331361937 | I50: =(I34-(600*8.75%/4))*4/((I38+H38)/2) -> 0.005047631699 | J50: =(J34-(600*8.75%/4))*4/((J38+I38)/2) -> 0.009507820792 | K50: =(K34-(600*8.75%/4))*4/((K38+J38)/2) -> 0.01024404815 | L50: =(L34-(600*8.75%/4))*4/((L38+K38)/2) -> 0.0118672823 | M50: =(M34*2-52.5)/AVERAGE(F38,H38) -> 0.004704231878 | N50: =(N34*2-52.5)/AVERAGE(J38,N38) -> 0.01099868759
B51: Net Profit Over Revenues core adjusted for AT1 coupon | C51: =C32/(C10+C11-C12) -> 0.0138795534 | D51: =(D32-2.014)/(D10+D11-D12) -> 0.1564982665 | E51: =(E32-(600*8.75%/4))/(E10+E11-E12) -> 0.1777535006 | F51: =(F32-(600*8.75%/4))/(F10+F11-F12) -> -0.03919707042 | G51: =(G32-(600*8.75%/4))/(G10+G11-G12) -> 0.1252400926 | H51: =(H32-(600*8.75%/4))/(H10+H11-H12) -> 0.2147161924 | I51: 0.2157410121 | J51: =(J32-(600*8.75%/4))/(J10+J11-J12) -> 0.2993558544 | K51: =(K32-(600*8.75%/4))/(K10+K11-K12) -> 0.3206522982 | L51: =(L32-(600*8.75%/4))/(L10+L11-L12) -> 0.3054734312 | M51: =(M32*2-52.5)/(M10+M11-M12) -> 0.3438380525 | N51: =(N32*2-52.5)/(N10+N11-N12) -> 0.6253565582
B52: NPE Ratio | C52: =C40/C39 -> 0.4618880146 | D52: =D40/D39 -> 0.2450294937 | E52: =E40/E39 -> 0.1672626334 | F52: =F40/F39 -> 0.1273948227 | G52: =G40/G39 -> 0.1270737127 | H52: =H40/H39 -> 0.09255566614 | I52: =I40/I39 -> 0.08830766284 | J52: =J40/J39 -> 0.06755054043 | K52: =K40/K39 -> 0.06630338944 | L52: =L40/L39 -> 0.05538521689 | M52: =H52 -> 0.09255566614 | N52: =L52 -> 0.05538521689
B53: NFI/Assets | C53: =((C11-C12)*4)/((C38+69948)/2) -> 0.004225018152 | D53: =(D11-D12)*4/((D38+C38)/2) -> 0.005473540747 | E53: 0.005416981613 | F53: 0.006031788065 | G53: 0.00536696005 | H53: 0.006035307736 | I53: 0.006102683296 | J53: 0.006453993634 | K53: 0.00653914186 | L53: 0.007458982841 | M53: =(M11-M12)*2/((M38+F38)/2) -> 0.0056836758 | N53: =(N11-N12)*2/((N38+J38)/2) -> 0.006962484981
B54: Cost-to-Income Ratio core | C54: =-(C19-C20)/(C10+C11-C12) -> 0.4808385003 | D54: 0.4196578846 | E54: 0.5237548089 | F54: 0.5120443087 | G54: 0.5055095049 | H54: 0.4836838626 | I54: 0.4644330228 | J54: 0.3795955551 | K54: =-(K19-K20)/(K10+K11-K12) -> 0.3568097827 | L54: 0.316329617 | M54: 0.4941232497 | N54: 0.3355440575
B55: CoR organic | C55: =-(C23-C24)/C41*4 -> 0.01554189188 | D55: 0.01288117772 | E55: 0.01006157432 | F55: =-(F23-F24)/F41*4 -> 0.008316857767 | G55: 0.008909438498 | H55: =-(H23-H24)/H41*4 -> 0.008225735971 | I55: =-(I23-I24)/I41*4 -> 0.008105940661 | J55: =-(J23-J24)/J41*4 -> 0.00780214914 | K55: =-(K23-K24)/K41*4 -> 0.008417836818 | L55: =-(L23-L24)/L41*4 -> 0.01141461683 | M55: =-(M23-M24)/M41*2 -> 0.00852128964 | N55: =-(N23-N24)/N41*2 -> 0.009873973686
B56: CET 1 Ratio FL4 | C56: 0.101100877 | D56: 0.08833258633 | E56: 0.0757052214 | F56: 0.0862952757 | G56: 0.09772035991 | H56: 0.09505072306 | I56: 0.1040112821 | J56: 0.115374295 | K56: 0.1216068364 | L56: 0.1233708912 | M56: 0.09505072306 | N56: 0.1233708912
B57: Total Capital Ratio FL4 | C57: 0.1225465656 | D57: 0.1290909312 | E57: 0.1219068041 | F57: 0.1338491393 | G57: 0.1455061058 | H57: 0.1430642046 | I57: 0.1514937508 | J57: 0.1639728226 | K57: 0.1696628642 | L57: 0.17106045 | M57: 0.1430642046 | N57: 0.17106045
B59: 1. In Q4.22 €26mn one-off related with the sale of RES infrastructure, booked in associates' income. For an analysis of all PnL one-offs refer to spreadsheet "EPS calculations"
B60: 2. Gross loans, Net loans and NPEs include loans and advances to customers fair valued through P&L
B61: 3. Normalized profits are calculated under an assumption of normalized tax rate. A projected effective corporate tax rate of 26% is used based on Piraeus business plan assumptions for 2023
B62: 4. Capital ratios for June 2023 are pro-forma for the RWA relief from the Sunrise 3, Solar NPE securitizations and the RWA of the Delta and Wheel NPE portfolios, classified as HFS as at 30 June 2023

Sheet EPS calculations
N2: Back to Cover
B5: EPS CALCULATIONS
B8: (million €)
B9: Group Figures | C9: Q1 2021 | D9: Q2 2021 | E9: Q3 2021 | F9: Q4 2021 | G9: Q1 2022 | H9: Q2 2022 | I9: Q3 2022 | J9: Q4 2022 | K9: Q1 2023 | L9: Q2 2023 | M9: H1 2022 | N9: H1 2023
B10: Net interest income | C10: 365.521 | D10: 406.729 | E10: 319.035 | F10: 318.281 | G10: 285.895 | H10: 305.568 | I10: 330.592 | J10: 430.647 | K10: 446.866 | L10: 487.8 | M10: 591.463 | N10: 934.666
B11: Net fee income & rental/non bank income (1) | C11: 74.96735846 | D11: 100.5240505 | E11: 101.7233153 | F11: 115.7406524 | G11: 105.7193203 | H11: 121.5663294 | I11: 125.4191905 | J11: 126.4977746 | K11: 121.647 | L11: 141.406 | M11: 227.2856497 | N11: 263.053
B12: Operating expenses | C12: -211.8037617 | D12: -212.8727421 | E12: -220.3741911 | F12: -222.2383169 | G12: -197.9647612 | H12: -206.5979823 | I12: -211.7866556 | J12: -211.48968 | K12: -202.851 | L12: -199.036493 | M12: -404.5627435 | N12: -401.887493
B13: Underlying Cost of Risk | C13: -102.8482901 | D13: -60.4790003 | E13: -50.64899985 | F13: -43.43899971 | G13: -44.036209 | H13: -45.598 | I13: -44.685 | J13: -17.424 | K13: -35.677 | L13: -68.96647572 | M13: -89.634209 | N13: -104.6434757
B14: Servicing Fees & Credit Protection Costs | C14: -42.784525 | D14: -46.636085 | E14: -33.531861 | F14: -29.591713 | G14: -34.092791 | H14: -27.293 | I14: -28.457 | J14: -52.602 | K14: -38.956 | L14: -33.26241027 | M14: -61.385791 | N14: -72.21841027
B15: Impairment on Other Assets | C15: -24.397 | D15: -39.49 | E15: -4.707 | F15: 12.442 | G15: -3.313 | H15: -9.418 | I15: -19.057 | J15: -38.635 | K15: -10.359 | L15: -32.141 | M15: -12.731 | N15: -42.5
B16: Associates' Income | C16: -6.069 | D16: -0.925 | E16: 8.585 | F16: 16.566 | G16: -4.425 | H16: -4.999 | I16: 0.277 | J16: 12.24 | K16: -10.639 | L16: -11.848 | M16: -9.424 | N16: -22.487
B17: Core Operating Income | C17: =SUM(C10:C16) -> 52.58578169 | D17: =SUM(D10:D16) -> 146.8502231 | E17: 120.0812634 | F17: 167.7606227 | G17: 107.7825591 | H17: =SUM(H10:H16) -> 133.2283471 | I17: =SUM(I10:I16) -> 152.3025348 | J17: =SUM(J10:J16) -> 249.2340946 | K17: =SUM(K10:K16) -> 270.031 | L17: =SUM(L10:L16) -> 283.951621 | M17: =SUM(M10:M16) -> 241.0109062 | N17: =SUM(N10:N16) -> 553.982621
B18: Tax | C18: -46.384 | D18: -64.501 | E18: -32.261 | F18: -173.16 | G18: -22.04 | H18: -0.289 | I18: -55.846 | J18: -61.52 | K18: -75.64 | L18: -14.627 | M18: -22.329 | N18: -90.267
B19: Tax normalized | C19: 0 | D19: 0 | E19: 0 | F19: 0 | G19: -46.82874537 | H19: -28.14769025 | I19: -40.99121906 | J19: -69.88854459 | K19: -75.64 | L19: -79.18090525 | M19: -74.97643562 | N19: -154.8209053
B20: Minorities | C20: -0.088 | D20: -0.951 | E20: 0.096 | F20: 1.512 | G20: 1.217 | H20: -0.243 | I20: 0.194 | J20: 0.564 | K20: 1.029 | L20: 0.56 | M20: 0.974 | N20: 1.589
B21: Core Operating Profit | C21: =SUM(C17:C20) -> 6.113781694 | D21: =SUM(D17:D20) -> 81.39822309 | E21: 87.91626344 | F21: -3.887377272 | G21: =G17+G19+G20 -> 62.17081376 | H21: =H17+H19+H20 -> 104.8376569 | I21: =I17+I19+I20 -> 111.5053158 | J21: 179.90955 | K21: 195.42 | L21: 205.3307158 | M21: 167.0084706 | N21: 400.7507158
B23: AT1 Coupon (mn) | C23: 0 | D23: -2.014 | E23: -13.125 | F23: -13.125 | G23: -13.125 | H23: -13.125 | I23: -13.125 | J23: -13.125 | K23: -13.125 | L23: -13.125 | M23: =-13.125*2 -> -26.25 | N23: =-13.125*2 -> -26.25
B24: Core Operating Profit adjusted for AT1 cpn (mn) | C24: =C21+C23 -> 6.113781694 | D24: =D21+D23 -> 79.38422309 | E24: =E21+E23 -> 74.79126344 | F24: =F21+F23 -> -17.01237727 | G24: =G21+G23 -> 49.04581376 | H24: =H21+H23 -> 91.71265685 | I24: =I21+I23 -> 98.38031578 | J24: 166.78455 | K24: 182.295 | L24: 192.2057158 | M24: 140.7584706 | N24: 374.5007158
B25: Core EPS | C25: =C24/(C48/1000000) -> 0.004889588899 | D25: =D24/(C48/1000000) -> 0.06348872685 | E25: =E24/(C48/1000000) -> 0.05981543827 | F25: =F24/(C48/1000000) -> -0.0136059047 | G25: =G24/(C48/1000000) -> 0.03922512751 | H25: =H24/(C48/1000000) -> 0.07334857726 | I25: =I24/(C48/1000000) -> 0.07868113781 | J25: =J24/(C48/1000000) -> 0.1333884534 | K25: =K24/(C48/1000000) -> 0.1457931691 | L25: =L24/(C48/1000000) -> 0.1537194132 | M25: =M24/(C48/1000000) -> 0.1125737048 | N25: =N24/(C48/1000000) -> 0.2995125823
B27: Core Operating Profit | C27: =C21 -> 6.113781694 | D27: 81.39822309 | E27: 87.91626344 | F27: -3.887377272 | G27: 62.17081376 | H27: =H21 -> 104.8376569 | I27: =I21 -> 111.5053158 | J27: =J21 -> 179.90955 | K27: =K21 -> 195.42 | L27: 205.3307158 | M27: 167.0084706 | N27: 400.7507158
B28: Trading & Other Income Normalized | C28: 24.19836138 | D28: -2.30357033 | E28: -0.38139517 | F28: -2.86115482 | G28: 72.328 | H28: -24.968 | I28: 5.356 | J28: 19.568 | K28: 8.274 | L28: 32.772 | M28: 47.36 | N28: 41.046
B29: Normalized Operating Profit | C29: =C27+C28 -> 30.31214307 | D29: =D27+D28 -> 79.09465276 | E29: 87.53486827 | F29: -6.748532092 | G29: 134.4988138 | H29: =H27+H28 -> 79.86965685 | I29: =I27+I28 -> 116.8613158 | J29: 199.47755 | K29: =K27+K28 -> 203.694 | L29: 238.1027158 | M29: 214.3684706 | N29: 441.7967158
B31: AT1 Coupon (mn) | C31: 0 | D31: -2.014 | E31: -13.125 | F31: -13.125 | G31: -13.125 | H31: -13.125 | I31: -13.125 | J31: -13.125 | K31: -13.125 | L31: -13.125 | M31: =-13.125*2 -> -26.25 | N31: =-13.125*2 -> -26.25
B32: Normalized Operating Profit adjusted for AT1 cpn (mn) | C32: =C29+C31 -> 30.31214307 | D32: =D29+D31 -> 77.08065276 | E32: 74.40986827 | F32: -19.87353209 | G32: 121.3738138 | H32: =H29+H31 -> 66.74465685 | I32: =I29+I31 -> 103.7363158 | J32: =J29+J31 -> 186.35255 | K32: =K29+K31 -> 190.569 | L32: =L29+L31 -> 224.9777158 | M32: 188.1184706 | N32: 415.5467158
B33: Normalized EPS | C33: =C32/(C48/1000000) -> 0.02424259251 | D33: =D32/(C48/1000000) -> 0.06164641182 | E33: =E32/(C48/1000000) -> 0.05951041175 | F33: =F32/(C48/1000000) -> -0.01589415631 | G33: =G32/(C48/1000000) -> 0.09707053378 | H33: =H32/(C48/1000000) -> 0.05338004358 | I33: =I32/(C48/1000000) -> 0.08296467939 | J33: =J32/(C48/1000000) -> 0.1490382558 | K33: =K32/(C48/1000000) -> 0.1524104251 | L33: =L32/(C48/1000000) -> 0.1799293133 | M33: =M32/(C48/1000000) -> 0.1504505774 | N33: =N32/(C48/1000000) -> 0.3323397384
B35: Normalized Operating Profit | C35: =C29 -> 30.31214307 | D35: =D29 -> 79.09465276 | E35: 87.53486827 | F35: -6.748532092 | G35: 134.4988138 | H35: =H29 -> 79.86965685 | I35: =I29 -> 116.8613158 | J35: 199.47755 | K35: =K29 -> 203.694 | L35: 238.1027158 | M35: 214.3684706 | N35: 441.7967158
B36: Clean-up Impairments | C36: -829.04671 | D36: -2185 | E36: -734 | F36: -126 | G36: -151.6 | H36: -117.35 | I36: -18.381 | J36: -33.1 | K36: -20.761 | L36: -180.799114 | M36: -268.95 | N36: -201.560114
B37: Merchant Acquiring Business Carveout | C37: 0 | D37: 0 | E37: 0 | F37: 0 | G37: 281 | H37: 0 | I37: 0 | J37: 0 | K37: 0 | L37: 0 | M37: 281 | N37: 0
B38: Fee, Trading & Other Income One offs | C38: 394.6903108 | D38: 100.5431415 | E38: 11.09546903 | F38: 195.4534382 | G38: 236.7227118 | H38: 108.6836529 | I38: 51.89811516 | J38: -0.67009459 | K38: 0 | L38: 0 | M38: 345.4063647 | N38: 0
B39: Operating Costs One offs | C39: 0 | D39: -40 | E39: 0 | F39: 15.199 | G39: -4.14727088 | H39: -6.6 | I39: -19.87765 | J39: -30.314 | K39: -3.172 | L39: -2.174507 | M39: -10.74727088 | N39: -5.346507
B40: Associates' income one-off | C40: 0 | D40: 0 | E40: 0 | F40: 0 | G40: 0 | H40: 0 | I40: 0 | J40: 25.8 | K40: 0 | L40: 0 | M40: 0 | N40: 0
B41: Tax normalized(2) | C41: 0 | D41: 0 | E41: 0 | F41: 0 | G41: 46.82874537 | H41: 28.14769025 | I41: 40.99121906 | J41: 69.88854459 | K41: 75.64 | L41: 79.18090525 | M41: 74.97643562 | N41: 154.8209053
B42: Reported Net Profit | C42: =SUM(C35:C41) -> -404.0442562 | D42: =SUM(D35:D41) -> -2045.362206 | E42: =SUM(E35:E41) -> -635.3696627 | F42: 77.90390609 | G42: =SUM(G35:G41)+G18 -> 521.263 | H42: =SUM(H35:H41)+H18 -> 92.462 | I42: 115.646 | J42: 169.562 | K42: 179.761 | L42: 119.683 | M42: 613.725 | N42: =SUM(N35:N41)+N18 -> 299.444
B44: AT1 Coupon (mn) | C44: 0 | D44: -2.014 | E44: -13.125 | F44: -13.125 | G44: -13.125 | H44: -13.125 | I44: -13.125 | J44: -13.125 | K44: -13.125 | L44: -13.125 | M44: =-13.125*2 -> -26.25 | N44: =-13.125*2 -> -26.25
B45: Reported Net Profit adjusted for AT1 cpn (mn) | C45: =C42+C44 -> -404.0442562 | D45: =D42+D44 -> -2047.376206 | E45: =E42+E44 -> -648.4946627 | F45: 64.77890609 | G45: 508.138 | H45: =H42+H44 -> 79.337 | I45: =I42+I44 -> 102.521 | J45: =J42+J44 -> 156.437 | K45: =K42+K44 -> 166.636 | L45: =L42+L44 -> 106.558 | M45: 587.475 | N45: 273.194
B46: Reported EPS adjusted | C46: =C45/(C48/1000000) -> -0.3231404732 | D46: =D45/(C48/1000000) -> -1.637419926 | E46: =E45/(C48/1000000) -> -0.5186433639 | F46: =F45/(C48/1000000) -> 0.05180790483 | G46: =G45/(C48/1000000) -> 0.4063910111 | H46: =H45/(C48/1000000) -> 0.06345095948 | I46: =I45/(C48/1000000) -> 0.08199271231 | J46: =J45/(C48/1000000) -> 0.1251128445 | K46: =K45/(C48/1000000) -> 0.1332696483 | L46: =L45/(C48/1000000) -> 0.0852213638 | M46: =M45/(C48/1000000) -> 0.4698419706 | N46: =N45/(C48/1000000) -> 0.2184910121
B48: Outstanding Number of Shares (#) | C48: 1250367223
B49: * For simplification, all EPS figures are calculated with the current number of shares; normalized core and operating profits include tax expense in its totality
B50: (1) Q1, Q2, Q3.2022 net fee & rental income and general expenses have been restated to reflect the reclassification of fees paid to card services provider, which were previously included within general expenses to net fee income as an expense. Comparative information have been restated backwards for 2021 in order to align with the aforementioned changes
B51: (2) Normalized profits are calculated under an assumption of normalized tax rate. A projected effective corporate tax rate of 26% is used based on Piraeus business plan assumptions for 2023

Sheet Balance Sheet
Q2: Back to Cover
B5: CONSOLIDATED BALANCE SHEET
B9: (million €) | F9: 2021-03-31 | G9: 2021-06-30 | H9: 2021-09-30 | I9: 2021-12-31 | J9: 2022-03-31 | K9: 2022-06-30 | L9: 2022-09-30 | M9: 2022-12-31 | N9: 2023-03-31 | O9: 2023-06-30 | Q9: QoQ
B10: ASSETS
B11: 1. Cash and balances with central banks | F11: 10179.561 | G11: 12525.597 | H11: 13294.813 | I11: 15519.423 | J11: 17962.309 | K11: 17900.583 | L11: 18296.858 | M11: 9653.321 | N11: 9575.525 | O11: 10606.469 | Q11: =O11/N11-1 -> 0.1076644884
B12: 2. Loans and advances to credit institutions | F12: 1396.656 | G12: 1367.58 | H12: 1360.682 | I12: 1344.002 | J12: 713.462 | K12: 764.02 | L12: 791.039 | M12: 750.274 | N12: 952.579 | O12: 725.865 | Q12: =O12/N12-1 -> -0.2380002079
B13: 3. Gross loans and advances to customers | F13: 47883.53 | G13: 36639.326 | H13: 35705.123 | I13: 38491.88 | J13: 37066.123 | K13: 36923.948 | L13: 37634.458 | M13: 38787.358 | N13: 36761.303 | O13: 36924.801 | Q13: 0.004447557259
B14: 4. Cumulative Provisions | F14: 10452.817 | G14: 3489.118 | H14: 2306.634 | I14: 1970.607 | J14: 2066.942 | K14: 1554.865 | L14: 1619.072 | M14: 1420.854 | N14: 1348.92 | O14: 1152.996 | Q14: -0.145245085
B15: 5. Net Loans | F15: 37430.713 | G15: 33150.208 | H15: 33398.489 | I15: 36521.273 | J15: 34999.181 | K15: 35369.083 | L15: 36015.386 | M15: 37366.504 | N15: 35412.383 | O15: 35771.805 | Q15: 0.01014961348
B16: 6. Securities inc. derivatives | F16: 10317.455 | G16: 12762.773 | H16: 13280.59 | I16: 13268.543 | J16: 12726.203 | K16: 14168.24 | L16: 13902.302 | M16: 14301.594 | N16: 15124.817 | O16: 16006.099 | Q16: 0.0582672835
B17: 7. Investments in associates | F17: 263.492 | G17: 235.41 | H17: 244.587 | I17: 629.697 | J17: 540.509 | K17: 534.074 | L17: 669.656 | M17: 1023.017 | N17: 1039.75 | O17: 1077.651 | Q17: 0.03645203174
B18: 8. Goodwill | F18: 37.991 | G18: 37.988 | H18: 37.985 | I18: 9.399 | J18: 12.703 | K18: 12.701 | L18: 26.506 | M18: 26.884 | N18: 26.979 | O18: 26.934 | Q18: -0.001667963972
B19: 9. Other intagible assets | F19: 231.934 | G19: 242.791 | H19: 243.823 | I19: 257.584 | J19: 252.414 | K19: 270.463 | L19: 272.971 | M19: 285.132 | N19: 286.298 | O19: 303.168 | Q19: 0.05892461701
B20: 10. Property, plant and equipment | F20: 2106.154 | G20: 2099.753 | H20: 2086.39 | I20: 1930.115 | J20: 2234.352 | K20: 2302.94874 | L20: 2314.174 | M20: 2249.849 | N20: 2279.135 | O20: 2500.199346 | Q20: 0.09699484479
B21: 11. Deferred tax assets | F21: 6299.403 | G21: 6275.493 | H21: 6245.184 | I21: 6070.271 | J21: 6104.846 | K21: 6127.767 | L21: 6073.904 | M21: 5974.381 | N21: 5899.071 | O21: 5893.234 | Q21: -0.0009894778347
B22: 12. Other assets | F22: 3484.644 | G22: 3637.232 | H22: 3621.108 | I22: 3689.626 | J22: 3652.161 | K22: 3800.788894 | L22: 3821.595 | M22: 3623.611 | N22: 3723.432 | O22: 3663.948 | Q22: -0.01597558382
B23: 13. Assets from discontinued operations & held for sale (1,2,3,4,5,6,7,8,9,10) | F23: 365.656 | G23: 2703.412 | H23: 1607.422 | I23: 549.568 | J23: 297.892 | K23: 621.6877847 | L23: 471.678 | M23: 406.071 | N23: 359.916 | O23: 407.241 | Q23: 0.1314890141
B24: 14. Total Assets | F24: 72113.659 | G24: 75038.237 | H24: 75421.072 | I24: 79789.501 | J24: 79496.032 | K24: 81872.35642 | L24: 82656.068 | M24: 75660.637 | N24: 74679.885 | O24: 76982.61335 | Q24: =O24/N24-1 -> 0.03083465307
B26: LIABILITIES & EQUITY
B27: 15. Due to credit institutions | F27: 11408.451 | G27: 13791.319 | H27: 13931.491 | I27: 14865.353 | J27: 14843.166 | K27: 15405.651 | L27: 15455.851 | M27: 6921.598 | N27: 6914.194 | O27: 7657.502 | Q27: =O27/N27-1 -> 0.1075046491
B28: ECB | F28: 11000 | G28: 13500 | H28: 13500 | I28: 14500 | J28: 14500 | K28: 14500 | L28: 14400 | M28: 5500 | N28: 5500 | O28: 5500 | Q28: =O28/N28-1 -> 0
B29: Other | F29: 408.451 | G29: 291.319 | H29: 431.491 | I29: 365.353 | J29: 343.166 | K29: 905.651 | L29: 1055.851 | M29: 1421.598 | N29: 1414.194 | O29: 2157.502 | Q29: 0.5256053978
B30: 16. Liabilities at FV through PL | F30: 8.959 | G30: 0 | H30: 0.405 | I30: 0 | J30: 0 | K30: 0 | L30: 0.097 | M30: 0.097 | N30: 0.097 | O30: 0.097 | Q30: -
B31: 17. Derivative financial instruments | F31: 477.958 | G31: 457.047 | H31: 416.56 | I31: 392.69 | J31: 352.846 | K31: 774.539 | L31: 679.075 | M31: 655.556 | N31: 626.824 | O31: 632.132 | Q31: =O31/N31-1 -> 0.008468086736
B32: 18. Due to customers | F32: 50430.936 | G32: 51214.958 | H32: 52232.855 | I32: 55441.917 | J32: 54853.94 | K32: 56079.063 | L32: 56732.552 | M32: 58371.917 | N32: 57173.915 | O32: 58381.488 | Q32: =O32/N32-1 -> 0.02112104795
B33: 19. Debt securities and other borrowed funds | F33: 1392.805 | G33: 1370.966 | H33: 1388.259 | I33: 1905.826 | J33: 1900.231 | K33: 1883.566 | L33: 1906.095 | M33: 1786.289 | N33: 1783.144 | O33: 1773.746 | Q33: -0.005270466098
B34: 20. Deferred tax liabilities | F34: 31.356 | G34: 31.389 | H34: 31.464 | I34: 10.043 | J34: 9.971 | K34: 9.918 | L34: 9.893 | M34: 9.936 | N34: 9.964 | O34: 9.192 | Q34: -0.07747892413
B35: 21. Retirement benefit obligations | F35: 124.456 | G35: 119.295 | H35: 114.456 | I35: 74.92 | J35: 69.616 | K35: 66.42272806 | L35: 64.58 | M35: 55.177 | N35: 52.134 | O35: 49.935 | Q35: -0.04217976752
B36: 22. Other liabilities | F36: 1507.716 | G36: 1483.674 | H36: 1437.637 | I36: 1267.636 | J36: 1249.205 | K36: 1412.086 | L36: 1453.903 | M36: 1279.409 | N36: 1354.399 | O36: 1585.882 | Q36: 0.1709119691
B37: 23. Liabilities from discontinued operations & held for sale (1,2,3,4,5,6,7,8,9,10) | F37: 32.015 | G37: 32.445 | H37: 31.778 | I37: 28.325 | J37: 28.037 | K37: 28.224 | L37: 0 | M37: 0 | N37: 0 | O37: 0 | Q37: -
B38: 24. Total Liabilities | F38: 65414.652 | G38: 68501.093 | H38: 69584.905 | I38: 73986.71 | J38: 73307.012 | K38: 75659.534 | L38: 76302.046 | M38: 69079.979 | N38: 67914.671 | O38: 70089.974 | Q38: =O38/N38-1 -> 0.0320299424
B39: 25. Shareholders' funds | F39: 6590.518 | G39: 5827.703 | H39: 5126.823 | I39: 5187.516 | J39: 5569.033 | K39: 5595.558 | L39: 5725.603 | M39: 5952.799 | N39: 6138.377 | O39: 6250.291 | Q39: =O39/N39-1 -> 0.0182318551
B40: 26. Additional Tier I | G40: 600 | H40: 600 | I40: 600 | J40: 600 | K40: 600 | L40: 600 | M40: 600 | N40: 600 | O40: 600 | Q40: =O40/N40-1 -> 0
B41: 27. Non Controlling Interests | F41: 108.488 | G41: 109.441 | H41: 109.344 | I41: 15.275 | J41: 19.987 | K41: 17.266 | L41: 28.422 | M41: 27.857 | N41: 26.838 | O41: 42.353 | Q41: 0.5780982189
B42: 28. Total Equity | F42: 6699.006 | G42: 6537.144 | H42: 5836.167 | I42: 5802.791 | J42: 6189.02 | K42: 6212.824 | L42: 6354.025 | M42: 6580.656 | N42: 6765.215 | O42: 6892.644 | Q42: =O42/N42-1 -> 0.01883591283
B43: 29. Tangible Equity | F43: =F42-F41-F40-F19-F18 -> 6320.593 | G43: 5546.924 | H43: 4845.015 | I43: 4920.533 | J43: 5303.916 | K43: =K42-K41-K40-K19-K18 -> 5312.394 | L43: =L42-L41-L40-L19-L18 -> 5426.126 | M43: =M42-M41-M40-M19-M18 -> 5640.783 | N43: =N42-N41-N40-N19-N18 -> 5825.1 | O43: =O42-O41-O40-O19-O18 -> 5920.189 | Q43: =O43/N43-1 -> 0.0163240116
B44: 30. Total Liabilities & Equity | F44: 72113.658 | G44: 75038.237 | H44: 75421.072 | I44: 79789.501 | J44: 79496.032 | K44: 81872.358 | L44: 82656.071 | M44: 75660.635 | N44: 74679.886 | O44: 76982.618 | Q44: =O44/N44-1 -> 0.0308347016
B46: (1) For 31.03.2021 and onwards discontinued operations refer to Imithea
B47: (2) For 30.06.2021 discontinued operations also include Sunrise 1 loan portfolio, classified as HFS along with other corporate NPE tickets similarly categorized
B48: (3) For 30.09.2021 discontinued operations also include Sunrise 2 loan portfolio, as well Sunshine Leasing NPE portfolio along with other corporate NPE tickets similarly categorized
B49: (4) For 31.12.2021 discontinued operations also include Sunshine Leasing and Dory shipping NPE portfolios along with other corporate NPE tickets similarly categorized
B50: (5) For 31.03.2022 discontinued operations also include Sunshine Leasing NPE portfolio along with other corporate NPE tickets similarly categorized
B51: (6) For 30.06.2022 discontinued operations also include Sunrise 3 NPE loan portfolio, Solar NPE loan portfolio, Sunshine Leasing NPE portfolio along with other corporate NPE tickets similarly categorized
B52: (7) For 30.09.2022 disconinued operations have zeroed on the back of the loss of control over IMITHEA; figure includes Sunrise 3 NPE loan portfolio, Solar NPE loan portfolio, Sunshine Leasing NPE portfolio along with other corporate NPE tickets similarly categorized
B53: (8) For 31.12.2022 figure includes Sunrise 3 NPE loan portfolio, Solar NPE loan portfolio, Sunshine Leasing NPE portfolio along with other corporate NPE tickets similarly categorized
B54: (9) For 31.03.2023 figure includes Sunrise 3 NPE loan portfolio, Solar NPE loan portfolio, Sunshine Leasing NPE portfolio along with other corporate NPE tickets similarly categorized
B55: (10) For 30.06.2023 figure includes Sunrise 3 NPE loan portfolio, Solar NPE loan portfolio, Sunshine Leasing NPE portfolio, Delta NPE loan portfolio along with other corporate NPE tickets similarly categorized

Sheet Analysis of selected BS items
L2: Back to Cover
B5: ANALYSIS OF SELECTED BALANCE SHEET ITEMS
B8: (million €)
B9: CONSOLIDATED LOANS (per customer type) | C9: 2021-03-31 | D9: 2021-06-30 | E9: 2021-09-30 | F9: 2021-12-31 | G9: 2022-03-31 | H9: 2022-06-30 | I9: 2022-09-30 | J9: 2022-12-31 | K9: 2023-03-31 | L9: 2023-06-30
B10: 1. Loans to Corporate Entities | C10: 30574.86719 | D10: 23993.46227 | E10: 21301.74627 | F10: 21593.28121 | G10: 21787.93011 | H10: 21824.11516 | I10: 22594.43848 | J10: 22421.12869 | K10: 22095.24784 | L10: 22702.93994
B11: 2. Seasonal OPEKEPE* | F11: 1474 | J11: 1517.325567
B12: 3. Senior Notes (HAPS securitizations) | D12: 2489.667496 | E12: 4959.038 | F12: 6236 | G12: 6182 | H12: 6131.167831 | I12: 6108.781908 | J12: 6074.423942 | K12: 6034.044451 | L12: 5951.678019
B13: 4. Mortgage loans | C13: 13301.64006 | D13: 7697.03262 | E13: 7248.347405 | F13: 7194.967238 | G13: 7114.71612 | H13: 6984.714555 | I13: 6944.80732 | J13: 6879.443845 | K13: 6756.481908 | L13: 6518.346134
B14: 5. Consumer loans | C14: 4007.023033 | D14: 2459.16392 | E14: 2195.9914 | F14: 1993.631624 | G14: 1981.476942 | H14: 1983.950088 | I14: 1986.430287 | J14: 1895.035972 | K14: 1875.528453 | L14: 1751.836632
B15: 6. Loans to Individuals | C15: 17308.66309 | D15: 10156.19654 | E15: 9444.338805 | F15: 9188.598862 | G15: 9096.193062 | H15: 8968.664643 | I15: 8931.237607 | J15: 8774.479817 | K15: 8632.010361 | L15: 8270.182766
B16: 7. Total Gross Loans to Customers | C16: 47883.53 | D16: 36639.326 | E16: 35705.123 | F16: 38491.88 | G16: 37066.123 | H16: 36923.948 | I16: 37634.458 | J16: 38787.358 | K16: 36761.303 | L16: 36924.80073
B18: Composition
B19: 1. Loans to Corporate Entities | C19: =+C10/C$16 -> 0.638525756 | D19: 0.6548554488 | E19: 0.5966019574 | F19: 0.5609827634 | G19: 0.5878124916 | H19: 0.5910558415 | I19: =+I10/I$16 -> 0.6003657202 | J19: 0.5780524854 | K19: =+K10/K$16 -> 0.6010463732 | L19: =+L10/L$16 -> 0.6148425853
B20: 2. Seasonal OPEKEPE * | C20: 0 | D20: 0 | E20: 0 | F20: 0.03829379079 | G20: 0 | H20: 0 | I20: =+I11/I$16 -> 0 | J20: 0.03911907501 | K20: 0 | L20: =+L11/L$16 -> 0
B21: 3. Senior Notes (HAPS securitizations) | D21: =+D12/D$16 -> 0.06795069036 | E21: 0.1388886967 | F21: 0.162008195 | G21: 0.1667830218 | H21: 0.1660485447 | I21: =+I12/I$16 -> 0.1623188491 | J21: 0.156608345 | K21: 0.1641412017 | L21: =+L12/L$16 -> 0.1611837546
B22: 4. Mortgage loans | C22: =+C13/C$16 -> 0.2777915509 | D22: 0.2100757154 | E22: 0.2030058097 | F22: 0.1869216894 | G22: 0.1919465955 | H22: 0.1891648898 | I22: =+I13/I$16 -> 0.1845332094 | J22: 0.177363043 | K22: 0.1837933195 | L22: 0.1765302996
B23: 5. Consumer loans | C23: =+C14/C$16 -> 0.0836826991 | D23: 0.06711815386 | E23: 0.0615035383 | F23: 0.05179356332 | G23: 0.05345789583 | H23: 0.05373071395 | I23: =+I14/I$16 -> 0.0527822212 | J23: 0.04885705214 | K23: 0.05101909617 | L23: 0.04744336049
B24: 6. Loans to Individuals | C24: =+C15/C$16 -> 0.36147425 | D24: 0.2771938692 | E24: 0.264509348 | F24: 0.2387152527 | G24: 0.2454044914 | H24: 0.2428956038 | I24: =+I15/I$16 -> 0.2373154306 | J24: 0.2262200951 | K24: 0.2348124157 | L24: 0.2239736601
B25: 7. Total Gross Loans to Customers | C25: =+C16/C$16 -> 1 | D25: 1 | E25: 1 | F25: 1 | G25: 1 | H25: 1 | I25: =+I16/I$16 -> 1 | J25: 1 | K25: 1 | L25: 1
B27: * OPEKEPE relates to a seasonal funding facility to Greek farmers (EU subsidized bridge financing); the loan is granted close to year end and is repaid early next year
B29: SECURITIES (debt & equity securities) | C29: 2021-03-31 | D29: 2021-06-30 | E29: 2021-09-30 | F29: 2021-12-31 | G29: 2022-03-31 | H29: 2022-06-30 | I29: 2022-09-30 | J29: 2022-12-31 | K29: 2023-03-31 | L29: 2023-06-30
B30: 1. Derivative financial instruments | C30: 615.141 | D30: 581.156 | E30: 613.989 | F30: 591.027 | G30: 968.327 | H30: 1899.951 | I30: 1799.131 | J30: 1830.447 | K30: 2070.438 | L30: 2278.897
B31: 2. Debt securities at amortized cost | C31: 4975.363 | D31: 8629.211 | E31: 8654.379 | F31: 9200.318 | G31: 9013.431 | H31: 9500.613 | I31: 9773.154 | J31: 10843.849 | K31: 10920.926 | L31: 10916.134
B32: 3. Financial instruments at fair value through P&L | C32: 675.534 | D32: 724.964 | E32: 1081.15 | F32: 906.211 | G32: 792.022 | H32: 746.923 | I32: 738.218 | J32: 548.008 | K32: 860.8 | L32: 1345.778
B33: 4. Financial instruments at fair value through operating comprehensive income | C33: 4051.417 | D33: 2827.442 | E33: 2931.072 | F33: 2570.987 | G33: 1952.423 | H33: 2020.753 | I33: 1591.799 | J33: 1079.29 | K33: 1272.653 | L33: 1465.29
B34: 5. Total Securities | C34: =SUM(C30:C33) -> 10317.455 | D34: =SUM(D30:D33) -> 12762.773 | E34: 13280.59 | F34: 13268.543 | G34: 12726.203 | H34: =SUM(H30:H33) -> 14168.24 | I34: =SUM(I30:I33) -> 13902.302 | J34: =SUM(J30:J33) -> 14301.594 | K34: =SUM(K30:K33) -> 15124.817 | L34: =SUM(L30:L33) -> 16006.099
B37: CONSOLIDATED CUSTOMER DEPOSITS (per product type) | C37: 2021-03-31 | D37: 2021-06-30 | E37: 2021-09-30 | F37: 2021-12-31 | G37: 2022-03-31 | H37: 2022-06-30 | I37: 2022-09-30 | J37: 2022-12-31 | K37: 2023-03-31 | L37: 2023-06-30
B38: 1. Savings | C38: 21012.87101 | D38: 21944.78298 | E38: 22688.74649 | F38: 24322.08608 | G38: 24506.80432 | H38: 24515.16057 | I38: 24730.94941 | J38: 25795.14191 | K38: 24277.18108 | L38: 23702.75001
B39: 2. Sight deposits and other deposits | C39: 16217.32168 | D39: 17497.41208 | E39: 18705.92199 | F39: 20828.72165 | G39: 20576.45889 | H39: 22174.07582 | I39: 22289.72196 | J39: 22246.43562 | K39: 21038.98668 | L39: 21165.67594
B40: 3. Term deposits, repos | C40: 13200.74342 | D40: 11772.76289 | E40: 10838.18621 | F40: 10291.1093 | G40: 9770.676472 | H40: 9389.826297 | I40: 9711.880366 | J40: 10330.33985 | K40: 11857.74762 | L40: 13513.06189
B41: 4. Total Customer Deposits | C41: =C38+C39+C40 -> 50430.93611 | D41: 51214.95796 | E41: =E38+E39+E40 -> 52232.8547 | F41: =F38+F39+F40 -> 55441.91703 | G41: 54853.93969 | H41: 56079.06268 | I41: 56732.55173 | J41: 58371.91738 | K41: =K38+K39+K40 -> 57173.91539 | L41: =L38+L39+L40 -> 58381.48784
B43: Composition
B44: 1. Savings | C44: =+C38/C$41 -> 0.4166662892 | D44: 0.4284838621 | E44: 0.4343769189 | F44: 0.438694897 | G44: 0.4467647075 | H44: 0.4371535364 | I44: =+I38/I$41 -> 0.4359216827 | J44: =+J38/J$41 -> 0.4419101353 | K44: =+K38/K$41 -> 0.4246198799 | L44: =+L38/L$41 -> 0.4059977038
B45: 2. Sight deposits and other deposits | C45: 0.3215748691 | D45: 0.3416465186 | E45: 0.3581255916 | F45: 0.3756854518 | G45: 0.3751136019 | H45: 0.3954073901 | I45: =+I39/I$41 -> 0.3928912286 | J45: 0.3811153826 | K45: =+K39/K$41 -> 0.3679822615 | L45: 0.3625408794
B46: 3. Time deposits, repos | C46: 0.2617588417 | D46: 0.2298696193 | E46: 0.2074974894 | F46: 0.1856196512 | G46: 0.1781216906 | H46: 0.1674390735 | I46: =+I40/I$41 -> 0.1711870887 | J46: 0.1769744821 | K46: =+K40/K$41 -> 0.2073978586 | L46: 0.2314614168
B47: 4. Total Customer Deposits | C47: =+C44+C45+C46 -> 1 | D47: 1 | E47: 1 | F47: =+F44+F45+F46 -> 1 | G47: =+G44+G45+G46 -> 1 | H47: =+H44+H45+H46 -> 1 | I47: =+I44+I45+I46 -> 1 | J47: =+J44+J45+J46 -> 1 | K47: =+K44+K45+K46 -> 1 | L47: =+L44+L45+L46 -> 1
B50: CUSTOMER FUNDS | C50: 2021-03-31 | D50: 2021-06-30 | E50: 2021-09-30 | F50: 2021-12-31 | G50: 2022-03-31 | H50: 2022-06-30 | I50: 2022-09-30 | J50: 2022-12-31 | K50: 2023-03-31 | L50: 2023-06-30
B51: 1. Customer funds | C51: =C52+C53 -> 50430.93611 | D51: =D52+D53 -> 51214.95796 | E51: 52232.8547 | F51: 55441.91703 | G51: =G52+G53 -> 54853.93969 | H51: 56079.06268 | I51: 56732.55173 | J51: 58371.91738 | K51: 57173.91539 | L51: 58381.48784
B52: 2. Saving and sight deposits | C52: 37230.19269 | D52: 39442.19507 | E52: 41394.66848 | F52: 45150.80773 | G52: 45083.26321 | H52: 46689.23638 | I52: 47020.67137 | J52: 48041.57754 | K52: 45316.16777 | L52: 44868.42595
B53: 3. Time deposits | C53: 13200.74342 | D53: 11772.76289 | E53: 10838.18621 | F53: 10291.1093 | G53: 9770.676472 | H53: 9389.826297 | I53: 9711.880366 | J53: 10330.33985 | K53: 11857.74762 | L53: 13513.06189
B54: 4. Assets under management1 | C54: 4905.97 | D54: 5340.643061 | E54: 5595.3 | F54: 5789 | G54: 6696.6 | H54: 6516.1 | I54: 6425 | J54: 6938.49 | K54: 7554 | L54: 8220
B55: 5. Total customer assets | C55: =C51+C54 -> 55336.90611 | D55: 56555.60102 | E55: 57828.1547 | F55: 61230.91703 | G55: 61550.53969 | H55: =H51+H54 -> 62595.16268 | I55: =I51+I54 -> 63157.55173 | J55: =J51+J54 -> 65310.40738 | K55: =K51+K54 -> 64727.91539 | L55: =L51+L54 -> 66601.48784
B57: (1) Assets under management include MFMC assets, Private Banking assets, Brokerage and Custody. Iolcus is included as at 30 March 2022.

Sheet PL
L2: Back to Cover
B5: CONSOLIDATED P&L
B9: (million €) | C9: Q1 2021 | D9: Q2 2021 | E9: Q3 2021 | F9: Q4 2021 | G9: Q1 2022 | H9: Q2 2022 | I9: Q3 2022 | J9: Q4 2022 | K9: Q1 2023 | L9: Q2 2023
B10: Net interest income | C10: 365.521 | D10: 406.729 | E10: 319.035 | F10: 318.281 | G10: 285.895 | H10: 305.568 | I10: 330.592 | J10: 430.647 | K10: 446.866 | L10: 487.8
B11: Net fee and commission income (3) | C11: 76.24303061 | D11: 100.8416218 | E11: 101.8035416 | F11: 113.0879357 | G11: 100.747032 | H11: 105.0979823 | I11: 107.8043056 | J11: 107.34068 | K11: 104.691 | L11: 120.484
B12: Rental income and income from non-banking activities (1) | C12: 6.21463862 | D12: 8.84160433 | E12: 11.01524274 | F12: 13.60615482 | G12: 11.995 | H12: 15.875 | I12: 17.513 | J12: 18.487 | K12: 16.956 | L12: 20.922
B13: Core Income | C13: =C11+C10+C12 -> 447.9786692 | D13: =D11+D10+D12 -> 516.4122261 | E13: 431.8537844 | F13: 444.9750906 | G13: 398.637032 | H13: 426.5409823 | I13: =I11+I10+I12 -> 455.9093056 | J13: =J11+J10+J12 -> 556.47468 | K13: =K11+K10+K12 -> 568.513 | L13: =L11+L10+L12 -> 629.206
B14: Total trading, dividend, and other operating income | C14: 411.3983614 | D14: 89.08039567 | E14: -0.38139517 | F14: 181.6388452 | G14: 583.028 | H14: 84.309 | I14: 57.356 | J14: 19.568 | K14: 8.274 | L14: 32.772
B15: Total Net Revenues | C15: =C14+C10+C11+C12 -> 859.3770306 | D15: 605.4926218 | E15: 431.4723892 | F15: 626.6139357 | G15: =G14+G10+G11+G12 -> 981.665032 | H15: 510.8499823 | I15: 513.2653056 | J15: =J14+J10+J11+J12 -> 576.04268 | K15: =K14+K10+K11+K12 -> 576.787 | L15: =L14+L10+L11+L12 -> 661.978
B16: of which acquiring fees (4) | C16: 7.49031077 | D16: 9.15917554 | E16: 11.09546903 | F16: 10.95343818 | G16: 7.02271175 | H16: -0.5933471 | I16: -0.10188484 | J16: -0.67009459 | K16: 0 | L16: 0
B17: of which one-off | C17: 387.2 | D17: 91.383966 | E17: 0 | F17: 184.5 | G17: 510.7 | H17: 109.277 | I17: 52 | J17: 0 | K17: 0 | L17: 0
B18: Staff costs | C18: 96.847 | D18: 136.48 | E18: 95.392 | F18: 75.997 | G18: 91.201 | H18: 101.155 | I18: 121.266 | J18: 131.956 | K18: 96.719 | L18: 96.57
B19: Administrative expenses (3) | C19: 87.3667617 | D19: 88.47174215 | E19: 97.35219106 | F19: 103.9513169 | G19: 81.31903205 | H19: 87.15198231 | I19: 85.18530565 | J19: 83.88267999 | K19: 83.157 | L19: 78.429
B20: Depreciation and amortization | C20: 27.59 | D20: 27.921 | E20: 27.63 | F20: 27.091 | G20: 29.592 | H20: 24.891 | I20: 25.213 | J20: 25.965 | K20: 26.147 | L20: 26.212
B21: Operating Cost | C21: =C20+C19+C18 -> 211.8037617 | D21: 252.8727421 | E21: 220.3741911 | F21: =F20+F19+F18 -> 207.0393169 | G21: 202.112032 | H21: 213.1979823 | I21: 231.6643056 | J21: 241.80368 | K21: =K20+K19+K18 -> 206.023 | L21: 201.211
B22: of which one-off | C22: 0 | D22: 40 | E22: 0 | F22: -15.199 | G22: 4.14727088 | H22: 6.6 | I22: 19.87765 | J22: 30.314 | K22: 3.172 | L22: 2.174507
B24: Profit Before Tax & Provisions | C24: 647.5732689 | D24: 352.6198796 | E24: 211.0981982 | F24: 419.5746188 | G24: 779.553 | H24: 297.652 | I24: 281.601 | J24: 334.239 | K24: 370.764 | L24: 460.767
B26: Share of profit of associates | C26: -6.069 | D26: -0.925 | E26: 8.585 | F26: 16.566 | G26: -4.425 | H26: -4.999 | I26: 0.277 | J26: 38.04 | K26: -10.639 | L26: -11.848
B27: of which one-off | C27: 0 | D27: 0 | E27: 0 | F27: 0 | G27: 0 | H27: 0 | I27: 0 | J27: 25.8 | K27: 0 | L27: 0
B29: Impairment losses on loans | C29: 974.6795251 | D29: 2292.115085 | E29: 818.1808608 | F29: 199.0307127 | G29: 229.729 | H29: 190.241 | I29: 91.523 | J29: 103.126 | K29: 95.394 | L29: 283.028
B30: o/w underlying | C30: 102.8482901 | D30: 60.4790003 | E30: 50.64899985 | F30: 43.43899971 | G30: 44.036209 | H30: 45.598 | I30: 44.685 | J30: 17.424 | K30: 35.677 | L30: 68.96647572
B31: o/w cleanup & other adjustments | C31: 829.04671 | D31: 2185 | E31: 734 | F31: 126 | G31: 151.6 | H31: 117.35 | I31: 18.381 | J31: 33.1 | K31: 20.761 | L31: 180.799114
B32: o/w servicing fees & credit protection costs(2) | C32: 42.784525 | D32: 46.636085 | E32: 33.531861 | F32: 29.591713 | G32: 34.092791 | H32: 27.293 | I32: 28.457 | J32: 52.602 | K32: 38.956 | L32: 33.26241027
B33: Other impairment | C33: 24.397 | D33: 39.49 | E33: 4.707 | F33: -12.442 | G33: 3.313 | H33: 9.418 | I33: 19.057 | J33: 38.635 | K33: 10.359 | L33: 32.141
B34: Profit before Tax | C34: -357.5722562 | D34: -1979.910206 | E34: -603.2046627 | F34: 249.5519061 | G34: 542.086 | H34: 92.994 | I34: 171.298 | J34: 230.518 | K34: 254.372 | L34: 133.75
B35: Income tax expense | C35: 46.384 | D35: 64.501 | E35: 32.261 | F35: 173.16 | G35: 22.04 | H35: 0.289 | I35: 55.846 | J35: 61.52 | K35: 75.64 | L35: 14.627
B36: Normalized Income tax expense(5) | C36: 0 | D36: 0 | E36: 0 | F36: 0 | G36: 46.82874537 | H36: 28.14769025 | I36: 40.99121906 | J36: 69.88854459 | K36: 75.64 | L36: 79.18090525
B37: Non Controlling Interests | C37: 0.088 | D37: 0.951 | E37: -0.096 | F37: -1.512 | G37: -1.217 | H37: 0.243 | I37: -0.194 | J37: -0.564 | K37: -1.029 | L37: -0.56
B38: Net Profit / (Loss) Attributable to Shareholders | C38: -404.0442562 | D38: -2045.362206 | E38: -635.3696627 | F38: 77.90390609 | G38: 521.263 | H38: 92.462 | I38: 115.646 | J38: 169.562 | K38: 179.761 | L38: 119.683
B39: Reported EPS adjusted for AT1 | C39: =+C38/1250.367223 -> -0.3231404732 | D39: =+(D38-2.014)/1250.367223 -> -1.637419926 | E39: =+(E38-52.5/4)/1250.367223 -> -0.5186433639 | F39: 0.05180790483 | G39: 0.4063910111 | H39: 0.06345095948 | I39: 0.08199271231 | J39: =+(J38-52.5/4)/1250.367223 -> 0.1251128445 | K39: =+(K38-52.5/4)/1250.367223 -> 0.1332696483 | L39: =+(L38-52.5/4)/1250.367223 -> 0.0852213638
B40: Net Profit / (Loss) attributable to Shareholders from discontinued operations | C40: -2.609 | D40: 0.802 | E40: -3.265 | F40: -1.986 | G40: -0.847 | H40: -0.489 | I40: 52.72 | J40: -0.822 | K40: 0 | L40: 0
B41: Non Controlling Interests from discontinued operations | C41: 0 | D41: 0 | E41: 0 | F41: 0 | G41: 0 | H41: 0 | I41: 0 | J41: 0 | K41: 0 | L41: 0
B43: Core Operating Profit | C43: =+C38+C31+C22-C14-C16 -> 6.113781694 | D43: 81.39822309 | E43: 87.91626344 | F43: -3.887377272 | G43: =+G38+G31+G22-G14-G16+G35-G36 -> 62.17081376 | H43: =+H38+H31+H22-H14-H16+H35-H36 -> 104.8376569 | I43: =+I38+I31+I22-I14-I16+I35-I36 -> 111.5053158 | J43: =+J38+J31+J22-J14-J16-J27+J35-J36 -> 179.90955 | K43: =+K38+K31+K22-K14-K16-K27+K35-K36 -> 195.42 | L43: =+L38+L31+L22-L14-L16-L27-L36+L35 -> 205.3307158
B44: Core EPS adj for AT1 | C44: =+(C43)/1250.367223 -> 0.004889588899 | D44: =+(D43-2.014)/1250.367223 -> 0.06348872685 | E44: =+(E43-52.5/4)/1250.367223 -> 0.05981543827 | F44: -0.0136059047 | G44: 0.03922512751 | H44: 0.07334857726 | I44: 0.07868113781 | J44: =+(J43-52.5/4)/1250.367223 -> 0.1333884534 | K44: =+(K43-52.5/4)/1250.367223 -> 0.1457931691 | L44: 0.1537194132
B45: Normalized Operating Profit | C45: =+C43+C14-C17 -> 30.31214307 | D45: 79.09465276 | E45: 87.53486827 | F45: -6.748532092 | G45: 134.4988138 | H45: 79.86965685 | I45: 116.8613158 | J45: =+J43+J14-J17 -> 199.47755 | K45: =+K43+K14-K17 -> 203.694 | L45: =+L43+L14-L17 -> 238.1027158
B46: Normalized EPS adj for AT1 | C46: =+(C45)/1250.367223 -> 0.02424259251 | D46: =+(D45-2.014)/1250.367223 -> 0.06164641182 | E46: =+(E45-52.5/4)/1250.367223 -> 0.05951041175 | F46: -0.01589415631 | G46: 0.09707053378 | H46: 0.05338004358 | I46: 0.08296467939 | J46: =+(J45-52.5/4)/1250.367223 -> 0.1490382558 | K46: =+(K45-52.5/4)/1250.367223 -> 0.1524104251 | L46: =+(L45-52.5/4)/1250.367223 -> 0.1799293133
B48: (1) This line is reported as of Q1.21 onwards, while previously it was reported in other operating income
B49: (2) As of Q1.21, fees related to the management of NPEs (AuM and success fees) and fees payable in the context of synthetic securitizations are reported separately as servicing fees. For prior years servicing fees are illustrated, and comprise success and synthetic securitization fees only
B50: (3) Q1, Q2, Q3.22 net fee & rental income and general expenses have been restated to reflect the reclassification of €6.5mn relating to fees paid to card services provider, which were previously included within general expenses to net fee income as an expense. Comparative information have been restated backwards for 2021 in order to align with the aforementioned changes
B51: (4) acquiring fees for 2021 and 2022 have been classified as one-off for comparability purposes
B52: (5) Normalized profits are calculated under an assumption of normalized tax rate. A projected effective corporate tax rate of 26% is used based on Piraeus business plan assumptions for 2023
B53: CORE: excluding one off elements and trading/other income; NORMALIZED: excluding one off elements and including normalized/recurring trading/other income

Sheet NII
L2: Back to Cover
B5: NET INTEREST INCOME
B9: (million €) | C9: Q1 2021 | D9: Q2 2021 | E9: Q3 2021 | F9: Q4 2021 | G9: Q1 2022 | H9: Q2 2022 | I9: Q3 2022 | J9: Q4 2022 | K9: Q1 2023 | L9: Q2 2023
B10: Net Loans | C10: 375.4213086 | D10: 361.8617628 | E10: 322.0597062 | F10: 294.1638904 | G10: 276.3128424 | H10: 283.984852 | I10: 298.476187 | J10: 356.4091921 | K10: 410.647 | L10: 454.392
B11: o/w PEs | C11: 232.374855 | D11: 231.3447129 | E11: 235.6009123 | F11: 235.4005319 | G11: 236.7444361 | H11: 244.635939 | I11: 271.3177949 | J11: 333.0084808 | K11: 383.600116 | L11: 427.6759695
B12: o/w NPEs | C12: 143.0460536 | D12: 130.5166755 | E12: 86.45847361 | F12: 58.76305427 | G12: 39.56840631 | H12: 39.34891299 | I12: 27.15839214 | J12: 23.40071134 | K12: 27.04688395 | L12: 26.71603051
B13: Fixed Income Securities | C13: 28.88098615 | D13: 33.89601385 | E13: 34.3283804 | F13: 37.94886789 | G13: 38.99368068 | H13: 47.4616571 | I13: 63.70215254 | J13: 71.40390863 | K13: 77.10452746 | L13: 72.45608147
B14: Other Assets | C14: 54.51463819 | D14: 98.99548433 | E14: 54.96476091 | F14: 87.58227042 | G14: 70.14484956 | H14: 71.28409631 | I14: 41.92161908 | J14: 71.23153999 | K14: 93.42187911 | L14: 143.3537541
B15: Interest Income | C15: =C10+C13+C14 -> 458.8169329 | D15: =D10+D13+D14 -> 494.753261 | E15: =E10+E13+E14 -> 411.3528475 | F15: =F10+F13+F14 -> 419.6950287 | G15: 385.4513726 | H15: =H10+H13+H14 -> 402.7306054 | I15: =I10+I13+I14 -> 404.0999586 | J15: =J10+J13+J14 -> 499.0446408 | K15: =K10+K13+K14 -> 581.1734066 | L15: =L10+L13+L14 -> 670.2018356
B17: Customer Deposits | C17: 12.07521641 | D17: 10.77879132 | E17: 8.93242694 | F17: 8.41853696 | G17: 7.64338446 | H17: 8.98353679 | I17: 12.21932897 | J17: 19.87732892 | K17: 32.77246207 | L17: 52.68634844
B18: Due to Banks including TLTRO | C18: 0.4407506 | D18: 0.4212494 | E18: 0.43710518 | F18: 0.39465862 | G18: 1.34024155 | H18: 2.30947081 | I18: 3.12886795 | J18: 8.04106229 | K18: 33.19005944 | L18: 46.34500922
B19: Debt Securities | C19: 18.15499229 | D19: 18.38122999 | E19: 18.55513935 | F19: 21.70270937 | G19: 23.02753554 | H19: 23.53311276 | I19: 23.88430077 | J19: 25.82015497 | K19: 29.04353312 | L19: 29.60252051
B20: Other Liabilities | C20: 62.66195987 | D20: 58.48712319 | E20: 64.35661549 | F20: 70.85281299 | G20: 67.54442182 | H20: 62.33684301 | I20: 34.27561462 | J20: 14.66028831 | K20: 39.30050065 | L20: 53.76850683
B21: Interest Expense | C21: =SUM(C17:C20) -> 93.33291917 | D21: =SUM(D17:D20) -> 88.0683939 | E21: 92.28128696 | F21: 101.3687179 | G21: 99.55558337 | H21: =SUM(H17:H20) -> 97.16296337 | I21: =SUM(I17:I20) -> 73.50811231 | J21: =SUM(J17:J20) -> 68.39883449 | K21: =SUM(K17:K20) -> 134.3065553 | L21: =SUM(L17:L20) -> 182.402385
B23: Net Interest Income | C23: =C15-C21 -> 365.4840138 | D23: =D15-D21 -> 406.6848671 | E23: =E15-E21 -> 319.0715605 | F23: 318.3263108 | G23: 285.8957893 | H23: =H15-H21 -> 305.567642 | I23: =I15-I21 -> 330.5918463 | J23: =J15-J21 -> 430.6458063 | K23: =K15-K21 -> 446.8668513 | L23: =L15-L21 -> 487.7994506
B24: NIM on average assets | C24: 0.02060010356 | D24: 0.02214641912 | E24: 0.01698928828 | F24: 0.01658711522 | G24: 0.01451378082 | H24: 0.01517029364 | I24: 0.01608604129 | J24: 0.02197187267 | K24: 0.02402130892 | L24: 0.02573081644
B25: NIM on average interest earning assets | C25: 0.02480895087 | D25: 0.02675988954 | E25: 0.0204199208 | F25: 0.01964500141 | G25: 0.01715396842 | H25: 0.01811363543 | I25: 0.01918335147 | J25: 0.02617985078 | K25: 0.02895305616 | L25: 0.03133840251
B27: *Interest earning assets are total assets excluding equity and mutual fund financial assets, participations, goodwill and intangibles, fixed assets, deferred tax assets and discontinued

Sheet NFI
M2: Back to Cover
B5: NET FEE INCOME
B9: (million €) | D9: Q1 2021 | E9: Q2 2021 | F9: Q3 2021 | G9: Q4 2021 | H9: Q1 2022 | I9: Q2 2022 | J9: Q3 2022 | K9: Q4 2022 | L9: Q1 2023 | M9: Q2 2023
B10: Financing | C10: Loans | D10: 10.10146181 | E10: 21.43786263 | F10: 11.09205515 | G10: 20.94019307 | H10: 18.74705739 | I10: 25.91201244 | J10: 19.65718061 | K10: 23.16886717 | L10: 20.9666685 | M10: 30.55612159
C11: Letters of Guarantee | D11: 8.15453055 | E11: 8.07045551 | F11: 9.26179963 | G11: 8.94695287 | H11: 8.63785862 | I11: 9.62163728 | J11: 9.89439551 | K11: 11.20407593 | L11: 11.11191548 | M11: 11.30165805
C12: Investment Banking | D12: 0.018 | E12: 3.54574317 | F12: 7.182024 | G12: 6.00572183 | H12: 2.44107457 | I12: 0.0144 | J12: 3.57669583 | K12: 1.82577887 | L12: 0.265 | M12: 0.12077125
B13: Investment | C13: Bancassurance | D13: 9.72475676 | E13: 10.81999134 | F13: 9.888113248 | G13: 13.97983342 | H13: 10.19825264 | I13: 11.5088355 | J13: 11.54397734 | K13: 13.02348817 | L13: 11.24965382 | M13: 11.65291356
C14: Asset Management | D14: 4.31711425 | E14: 4.93592094 | F14: 5.343311888 | G14: 6.45831424 | H14: 6.94468917 | I14: 5.61014948 | J14: 6.09308048 | K14: 6.61703554 | L14: 7.399120124 | M14: 8.671807156
C15: Brokerage | D15: 4.024320762 | E15: 4.250889287 | F15: 4.724221759 | G15: 4.206410251 | H15: 5.1470756 | I15: 3.88239264 | J15: 4.16664089 | K15: 3.51767283 | L15: 4.73486413 | M15: 5.43506273
B16: Transactional | C16: Funds Transfer | D16: 15.39786264 | E16: 16.95599053 | F16: 19.14742184 | G16: 20.13448668 | H16: 18.480499 | I16: 21.48827459 | J16: 22.47452383 | K16: 23.65377066 | L16: 21.25105537 | M16: 23.76425347
C17: Cards | D17: 11.8575435 | E17: 15.9666287 | F17: 15.31052576 | G17: 14.85587042 | H17: 13.53969128 | I17: 7.29928744 | J17: 7.90167658 | K17: 5.83492813 | L17: 10.43776474 | M17: 9.34376328
C18: o/w acquiring | D18: 7.49031077 | E18: 9.15917554 | F18: 11.09546903 | G18: 10.95343818 | H18: 7.02271175 | I18: -0.5933471 | J18: -0.10188484 | K18: -0.67009459 | L18: 0 | M18: 0
C19: Payments | D19: 5.98897558 | E19: 5.37833529 | F19: 5.54017541 | G19: 6.24571022 | H19: 6.59795336 | I19: 6.65446902 | J19: 6.26909527 | K19: 4.28008403 | L19: 5.69319239 | M19: 6.24092624
C20: FX Fees | D20: 2.70116456 | E20: 4.9493964 | F20: 6.64318481 | G20: 8.39935952 | H20: 6.11548706 | I20: 8.53745616 | J20: 10.06072981 | K20: 9.3668429 | L20: 7.1370409 | M20: 7.6781423
C21: Other | D21: 3.90800559 | E21: 4.5852043 | F21: 7.6722004 | G21: 2.9069702 | H21: 3.89718859 | I21: 4.690189 | J21: 6.04607646 | K21: 4.84698752 | L21: 4.44498921 | M21: 5.71850738
B22: Rental and Other Income | D22: 6.21463862 | E22: 8.84160433 | F22: 11.01524274 | G22: 13.60615482 | H22: 11.995 | I22: 15.875 | J22: 17.513 | K22: 18.487 | L22: 16.956 | M22: 20.922
B23: Total | D23: =SUM(D10:D17)+D19+D20+D21+D22 -> 82.40837462 | E23: =SUM(E10:E17)+E19+E20+E21+E22 -> 109.7380224 | F23: =SUM(F10:F17)+F19+F20+F21+F22 -> 112.8202766 | G23: =SUM(G10:G17)+G19+G20+G21+G22 -> 126.6859775 | H23: =SUM(H10:H17)+H19+H20+H21+H22 -> 112.7418273 | I23: =SUM(I10:I17)+SUM(I19:I22) -> 121.0941036 | J23: =SUM(J10:J17)+SUM(J19:J22) -> 125.1970726 | K23: =SUM(K10:K17)+SUM(K19:K22) -> 125.8265318 | L23: =SUM(L10:L17)+SUM(L19:L22) -> 121.6472647 | M23: =SUM(M10:M17)+SUM(M19:M22) -> 141.405927
B25: *As of Q1.21 restatements have been made to reflect the reclassification of fees paid to card services provider, which were previously included within general expenses to net fee income as an expense; as of Q1.22 restatements have been made due to the integration of Wealth & Asset management segment

Sheet G&A
L2: Back to Cover
B5: G&A COSTS
B9: (million €) | C9: Q1 2021 | D9: Q2 2021 | E9: Q3 2021 | F9: Q4 2021 | G9: Q1 2022 | H9: Q2 2022 | I9: Q3 2022 | J9: Q4 2022 | K9: Q1 2023 | L9: Q2 2023
B10: Rents - maintenance | C10: 8.00294067 | D10: 8.69482709 | E10: 7.51171208 | F10: 9.84901401 | G10: 9.14918279 | H10: 8.92775003 | I10: 9.10588822 | J10: 8.77741626 | K10: 8.05315097 | L10: 7.67137686
B11: IT - telco | C11: 10.16764102 | D11: 12.83381588 | E11: 12.70812995 | F11: 5.705220657 | G11: 12.23865149 | H11: 7.001318506 | I11: 10.42754433 | J11: 2.185714591 | K11: 8.41056389 | L11: 8.73212458
B12: Legal - Business services | C12: 8.97080211 | D12: 0.90708578 | E12: 4.274691475 | F12: 11.53172358 | G12: 1.4526505 | H12: 4.71936502 | I12: 6.73368911 | J12: 3.95125807 | K12: 2.49697899 | L12: 4.69668445
B13: Marketing - subscriptions | C13: 7.12884223 | D13: 8.40870145 | E13: 6.87638368 | F13: 7.65612057 | G13: 5.69603829 | H13: 6.82723049 | I13: 5.61736556 | J13: 7.34903121 | K13: 5.51086017 | L13: 6.32585327
B14: Taxes | C14: 13.42265731 | D14: 17.21907389 | E14: 16.40110135 | F14: 18.27091606 | G14: 15.94412011 | H14: 16.34322741 | I14: 13.38762702 | J14: 13.78511962 | K14: 20.1488156 | L14: 17.59533623
B15: DGS - SRF | C15: 10.87753791 | D15: 11.58705806 | E15: 12.71771936 | F15: 13.03626228 | G15: 12.42302951 | H15: 14.65350771 | I15: 16.84064009 | J15: 14.82155871 | K15: 11.79499994 | L15: 6.21317206
B16: Other** | C16: 13.12742642 | D16: 17.39679709 | E16: 31.99873639 | F16: 31.38258517 | G16: 17.18646995 | H16: 18.07852334 | I16: 19.58599122 | J16: 26.52591028 | K16: 16.1404703 | L16: 17.17302413
B17: Subsidiaries | C17: 15.66891403 | D17: 11.42438291 | E17: 4.863716768 | F17: 6.519474622 | G17: 7.22888941 | H17: 10.60105981 | I17: 3.4865601 | J17: 6.48667125 | K17: 10.6013016 | L17: 10.02075966
B18: Total | C18: =SUM(C10:C17) -> 87.3667617 | D18: =SUM(D10:D17) -> 88.47174215 | E18: =SUM(E10:E17) -> 97.35219106 | F18: 103.9513169 | G18: =SUM(G10:G17) -> 81.31903205 | H18: 87.15198231 | I18: 85.18530565 | J18: 83.88267999 | K18: 83.15714146 | L18: 78.42833124
B20: *As of Q1.21 restatements have been made to reflect the reclassification of fees paid to card services provider, which were previously included within general expenses to net fee income as an expense
B21: ** Other includes Net gain/(losses) from sale of property and equipment and intangible assets

Sheet PL Segment view
K2: Back to Cover
B5: P&L SEGMENT VIEW H1.23
B9: (million €) | C9: Retail | D9: Corporate & IB | E9: Financial markets | F9: Other | G9: CORE TOTAL | I9: NPEMU | K9: GROUP
B10: Net interest income | C10: 434.1338441 | D10: 298.0012824 | E10: 171.7923279 | F10: 39.70429388 | G10: 943.6317484 | I10: -8.965446386 | K10: 934.666302
B11: Net fee and commission income | C11: 118.4175016 | D11: 91.48116042 | E11: 4.92697568 | F11: 7.12888151 | G11: 221.9545192 | I11: 3.22066576 | K11: 225.175185
B12: Rental and non-banking activities income | C12: 0 | D12: 0 | E12: 0 | F12: 35.22629126 | G12: 35.22629126 | I12: 2.65181715 | K12: 37.87810841
B13: Trading & Other Income | C13: 0.75671868 | D13: 0.64576555 | E13: 16.26700085 | F13: 4.90070287 | G13: 22.57018795 | I13: 18.47580305 | K13: 41.045991
B14: Net Revenues | C14: 553.3080644 | D14: 390.1282084 | E14: 192.9863045 | F14: 86.96016952 | G14: 1223.382747 | I14: 15.38283957 | K14: 1238.765586
B15: Operating Cost | C15: -206.7908182 | D15: -94.3258013 | E15: -21.87512748 | F15: -55.11168409 | G15: -378.1034311 | I15: -23.75847193 | K15: -401.861903
B16: Pre Provision Income (PPI) | C16: 346.5172462 | D16: 295.8024071 | E16: 171.111177 | F16: 31.84848543 | G16: 845.2793158 | I16: -8.375632356 | K16: 836.9036834
B17: Loan Impairment | C17: -8.5273592 | D17: -70.25379081 | E17: -0.00645976 | F17: -24.18678165 | G17: -102.9743914 | I17: -73.87788557 | K17: -176.852277
B18: Other Impairment | C18: 0.91429989 | D18: -1.21472038 | E18: -5.44827796 | F18: -12.86996937 | G18: -18.61866782 | I18: -23.89034818 | K18: -42.509016
B19: Associates Income | C19: 0 | D19: 0 | E19: 0 | F19: -2.82239794 | G19: -2.82239794 | I19: -19.66420247 | K19: -22.48660041
B20: Profit Before Tax | C20: 338.9041869 | D20: 224.3338959 | E20: 165.6564393 | F20: -8.030663534 | G20: 720.8638586 | I20: -125.8080686 | K20: 595.05579
B22: Assets | C22: 12020.92146 | D22: 20816.29117 | E22: 27913.90998 | F22: 6973.090352 | G22: 67724.21297 | I22: 9258.403033 | K22: 76982.616
B24: NIM over Assets | C24: 0.07222971141 | D24: 0.02863154439 | E24: 0.01230872551 | F24: 0.01138786158 | G24: 0.02786689448 | I24: -0.001936715512 | K24: 0.02428252898
B25: NFI and Rental Income over Assets | C25: 0.01970190089 | D25: 0.008789381322 | E25: 0.0003530122211 | F25: 0.01214817839 | G25: 0.007594944237 | I25: 0.001268573617 | K25: 0.006834095984
B26: Cost to Core Income | C26: 0.3742472438 | D26: 0.2421824219 | E26: 0.1237845953 | F26: 0.6716066573 | G26: 0.3148729819 | I26: n.m. | K26: 0.3355225251
B27: PPI over Assets | C27: 0.05765236006 | D27: 0.02842027954 | E27: 0.01225992182 | F27: 0.009134683137 | G27: 0.02496239613 | I27: -0.0018093039 | K27: 0.02174266677
B28: Cost of Risk | C28: 0.00191116098 | D28: 0.007418024499 | E28: 2.476815406e-05 | F28: 0.2717837273 | G28: 0.007209898741 | I28: 0.02050147826 | K28: 0.00988780281
B29: Pre-tax RoA | C29: 0.05638572516 | D29: 0.02155368543 | E29: 0.01186909605 | F29: -0.002303329837 | G29: 0.02128821664 | I29: -0.02717705594 | K29: 0.01545948478
B31: Note: Profit before tax illustrated on the table excludes cards merchant acquiring business consideration and non-recurring operating costs

Sheet Performing Loans
I2: Back to Cover
B5: PERFORMING LOANS
C9: 2021-12-31 | D9: 2022-03-31 | E9: 2022-06-30 | F9: 2022-09-30 | G9: 2022-12-31 | H9: 2023-03-31 | I9: 2023-06-30
B10: Segments
B11: Corporate Lending | C11: 17561.11676 | D11: 17905.0001 | E11: 19098.74722 | F11: 19984.73874 | G11: 20514.44566 | H11: 20383.71388 | I11: 21105.37598
B12: >> Large Corporate | C12: 7692.054679 | D12: 7922.179123 | E12: 8464.099121 | F12: 9077.235677 | G12: 9342.980693 | H12: 9281.816164 | I12: 9745.658229
B13: >> SME | C13: 5889.336354 | D13: 6069.641297 | E13: 6349.494447 | F13: 6377.919239 | G13: 6772.123473 | H13: 6694.118748 | I13: 6832.391938
B14: >> Shipping | C14: 2061.092559 | D14: 2043.23402 | E14: 2247.922086 | F14: 2510.768065 | G14: 2344.955517 | H14: 2407.499759 | I14: 2344.1885
B15: >> SB | C15: 1918.63317 | D15: 1869.945655 | E15: 2037.231566 | F15: 2018.815762 | G15: 2054.385977 | H15: 2000.279204 | I15: 2183.137316
B16: Retail Lending | C16: =+C17+C18 -> 8394.982173 | D16: 8348.745168 | E16: 8357.150072 | F16: 8298.886948 | G16: 8119.15897 | H16: =+H17+H18 -> 7964.641716 | I16: 7882.207769
B17: >>Mortgage loans | C17: 6701.620421 | D17: 6668.114092 | E17: 6632.046139 | F17: 6575.160646 | G17: 6490.847556 | H17: 6359.265384 | I17: 6261.547857
B18: >>Consumer loans & credit cards | C18: 1693.361752 | D18: 1680.631076 | E18: 1725.103933 | F18: 1723.726302 | G18: 1628.311414 | H18: 1605.376332 | I18: 1620.659911
B19: Senior notes | C19: 6236 | D19: 6182 | E19: 6131.167831 | F19: 6108.781908 | G19: 6074.423942 | H19: 6034.044451 | I19: 5951.678019
B20: Total | C20: =+C11+C16+C19 -> 32192.09894 | D20: 32435.74526 | E20: 33587.06512 | F20: 34392.4076 | G20: 34708.02857 | H20: =+H11+H16+H19 -> 34382.40004 | I20: 34939.26177
B22: Industry
B23: Manufacturing | C23: 2879 | D23: 3044 | E23: 3276 | F23: 3393 | G23: 3487 | H23: 3326 | I23: 3347
B24: Hospitality | C24: 1711 | D24: 1774 | E24: 1789 | F24: 1927 | G24: 2083 | H24: 2116 | I24: 2265
B25: Energy | C25: 1590 | D25: 1572 | E25: 1751 | F25: 1863 | G25: 1978 | H25: 1992 | I25: 2109
B26: Trade (Retail & Wholesale) | C26: 1923 | D26: 1955 | E26: 2089 | F26: 2065 | G26: 2188 | H26: 2210 | I26: 2413
B27: Construction & Real Estate | C27: 1283 | D27: 1282 | E27: 1371 | F27: 1713 | G27: 1862 | H27: 1921 | I27: 1954
B28: Transportation (incl Shipping) | C28: 2827 | D28: 2796 | E28: 2974 | F28: 3228 | G28: 3112 | H28: 3247 | I28: 3179
B29: Other | C29: 3429 | D29: 3612 | E29: 3812 | F29: 3777 | G29: 3750 | H29: 3571.434672 | I29: 3655.238668
B30: Total CIB | C30: =SUM(C23:C29) -> 15642 | D30: 16035 | E30: 17062 | F30: 17966 | G30: 18460 | H30: =SUM(H23:H29) -> 18383.43467 | I30: =SUM(I23:I29) -> 18922.23867
B33: Note: Corporate lending excludes seasonal OPEKEPE loan of €1,474mn for Dec.21 & €1,517mn for Dec.22

Sheet Loan Portfolio Quality
L2: Back to Cover
B5: LOAN PORTFOLIO QUALITY
B9: CONSOLIDATED LOAN PORTFOLIO QUALITY | C9: 2021-03-31 | D9: 2021-06-30 | E9: 2021-09-30 | F9: 2021-12-31 | G9: 2022-03-31 | H9: 2022-06-30 | I9: 2022-09-30 | J9: 2022-12-31 | K9: 2023-03-31 | L9: 2023-06-30
B10: Gross Loans
B11: 1. Loans to Businesses | C11: 30656.99169 | D11: 26605.54505 | E11: 26340.61162 | F11: 27918.33384 | G11: 28061.08899 | H11: 28043.94265 | I11: 28792.26117 | J11: 28557.66554 | K11: 28191.74343 | L11: 28717.45979
B12: o/w Senior notes | D12: 2489.667496 | E12: 4959.038 | F12: 6236 | G12: 6182 | H12: 6131.167831 | I12: 6108.781908 | J12: 6074.423942 | K12: 6034.044451 | L12: 5951.678019
B13: 2. OPEKEPE (seasonal loan to farmers) | C13: 0 | D13: 0 | E13: 0 | F13: 1474 | G13: 0 | H13: 0 | I13: 0 | J13: 1517.325567 | K13: 0 | L13: 0
B14: 3. Mortgage loans | C14: 13301.92886 | D14: 7697.322258 | E14: 7248.550719 | F14: 7195.170444 | G14: 7114.918883 | H14: 6984.917711 | I14: 6945.007859 | J14: 6879.643293 | K14: 6756.681081 | L14: 6518.544979
B15: 4. Consumer loans | C15: 4007.023033 | D15: 2459.16392 | E15: 2195.9914 | F15: 1993.631624 | G15: 1981.476942 | H15: 1983.95009 | I15: 1986.430286 | J15: 1895.035972 | K15: 1875.528453 | L15: 1751.836632
B16: 5. Loans to Individuals | C16: =C14+C15 -> 17308.9519 | D16: =D14+D15 -> 10156.48618 | E16: =E14+E15 -> 9444.542119 | F16: =F14+F15 -> 9188.802068 | G16: =G14+G15 -> 9096.395825 | H16: =H15+H14 -> 8968.8678 | I16: =I14+I15 -> 8931.438145 | J16: =J14+J15 -> 8774.679265 | K16: =K14+K15 -> 8632.209535 | L16: =L14+L15 -> 8270.381611
B17: 6. Total Gross Loans to Customers | C17: =C11+C16 -> 47965.94358 | D17: =D11+D16 -> 36762.03122 | E17: =E11+E16 -> 35785.15374 | F17: =F11+F13+F16 -> 38581.1359 | G17: =G11+G16 -> 37157.48481 | H17: =H11+H16 -> 37012.81045 | I17: =I11+I16 -> 37723.69932 | J17: =J11+J13+J16 -> 38849.67037 | K17: =K11+K13+K16 -> 36823.95296 | L17: =L11+L13+L16 -> 36987.8414
B19: Loans in Arrears > 90 days
B20: 1. Loans to Businesses | C20: 10857.50232 | D20: 4882.459496 | E20: 3492.241097 | F20: 2900.70168 | G20: 2884.701936 | H20: 1783.528425 | I20: 1737.239514 | J20: 1329.465923 | K20: 1180.556471 | L20: 985.0201321
B21: 2. Mortgage loans | C21: 4662.52935 | D21: 341.4479676 | E21: 183.5469577 | F21: 195.9721885 | G21: 214.036161 | H21: 174.786486 | I21: 203.6454391 | J21: 227.5013347 | K21: 263.3958226 | L21: 130.5638406
B22: 3. Consumer loans | C22: 1998.591304 | D22: 577.6871918 | E22: 358.0894878 | F22: 218.8458164 | G22: 232.3494553 | H22: 204.9286022 | I22: 212.2917734 | J22: 214.9766817 | K22: 224.5915529 | L22: 93.77595562
B23: 4. Loans to Individuals | C23: =C21+C22 -> 6661.120654 | D23: =D21+D22 -> 919.1351594 | E23: =E22+E21 -> 541.6364455 | F23: =F21+F22 -> 414.8180049 | G23: 446.3856163 | H23: 379.7150882 | I23: 415.9372125 | J23: 442.4780165 | K23: =K21+K22 -> 487.9873755 | L23: 224.3397962
B24: 5. Total Loans in arrears | C24: =C20+C23 -> 17518.62297 | D24: 5801.594655 | E24: 4033.877542 | F24: 3315.519685 | G24: 3331.087552 | H24: 2163.243513 | I24: 2153.176726 | J24: =J20+J23 -> 1771.943939 | K24: =K20+K23 -> 1668.543847 | L24: 1209.359928
B26: NPEs
B27: 1. Loans to Businesses | C27: 14206.91994 | D27: 7445.68999 | E27: 5019.821267 | F27: 4121.217075 | G27: 3974.088891 | H27: 2814.027599 | I27: 2698.740523 | J27: 1968.795934 | K27: 1773.985098 | L27: 1660.405789
B28: 2. Mortgage loans | C28: 5755.182348 | D28: 854.7166332 | E28: 521.1354296 | F28: 493.5500231 | G28: 446.8047911 | H28: 352.8715715 | I28: 369.8472139 | J28: 388.7957367 | K28: 397.4156973 | L28: 256.9971214
B29: 3. Consumer loans | C29: 2192.792164 | D29: 707.3583792 | E29: 444.5623555 | F29: 300.2698718 | G29: 300.8458654 | H29: 258.8461567 | I29: 262.7039837 | J29: 266.7245582 | K29: 270.1521217 | L29: 131.1767209
B30: 4. Loans to Individuals | C30: =C28+C29 -> 7947.974512 | D30: =D28+D29 -> 1562.075012 | E30: =E28+E29 -> 965.6977851 | F30: =+F28+F29 -> 793.819895 | G30: =G28+G29 -> 747.6506565 | H30: 611.7177282 | I30: 632.5511975 | J30: 655.5202949 | K30: 667.567819 | L30: 388.1738423
B31: 5. Total Loans in arrears | C31: =C27+C30 -> 22154.89445 | D31: 9007.765002 | E31: 5985.519052 | F31: 4915.03697 | G31: 4721.739548 | H31: 3425.745327 | I31: 3331.291721 | J31: =J27+J30 -> 2624.316229 | K31: =K27+K30 -> 2441.552917 | L31: 2048.579632
B35: LLRs
B36: 1. Loans to Businesses | C36: 6764.073882 | D36: 2858.061699 | E36: 1875.697249 | F36: 1687.613884 | G36: 1762.514131 | H36: 1273.969869 | I36: 1338.154028 | J36: 1131.645105 | K36: 1059.972213 | L36: 1000.017739
B37: 2. Mortgage loans | C37: 2101.748069 | D37: 126.6290548 | E37: 70.64527133 | F37: 72.46201509 | G37: 81.7536112 | H37: 80.59492258 | I37: 83.60878764 | J37: 86.43632532 | K37: 89.25912199 | L37: 47.79273894
B38: 3. Consumer loans | C38: 1618.759666 | D38: 514.8501338 | E38: 372.5325302 | F38: 222.8756517 | G38: 236.2588863 | H38: 212.9066846 | I38: 208.901476 | J38: 213.3856934 | K38: 210.5044835 | L38: 116.1788844
B39: 4. Loans to Individuals | C39: 3720.507735 | D39: 641.4791886 | E39: 443.1778015 | F39: 295.3376668 | G39: 318.0124975 | H39: 293.5016071 | I39: 292.5102636 | J39: 299.8220187 | K39: 299.7636055 | L39: 163.9716233
B40: 5. Total Loans to Customers | C40: =C36+C39 -> 10484.58162 | D40: =D36+D39 -> 3499.540887 | E40: 2318.875051 | F40: 1982.95155 | G40: =G36+G39 -> 2080.526628 | H40: =H36+H39 -> 1567.471476 | I40: =I36+I39 -> 1630.664292 | J40: =J36+J39 -> 1431.467124 | K40: =K36+K39 -> 1359.735818 | L40: =L36+L39 -> 1163.989363
B42: Loans in Arrears > 90 days / gross loans
B43: 1. Loans to Businesses | C43: =+C20/C11 -> 0.3541607222 | D43: 0.1835128537 | E43: 0.1325801066 | F43: =+F20/(F11+F13) -> 0.098689056 | G43: =+G20/G11 -> 0.1028007836 | H43: =+H20/H11 -> 0.06359763485 | I43: =+I20/I11 -> 0.06033702957 | J43: =+J20/(J11+J13) -> 0.04420503129 | K43: =+K20/(K11+K13) -> 0.04187596537 | L43: =+L20/(L11+L13) -> 0.03430039214
B44: 2. Mortgage loans | C44: =+C21/C14 -> 0.3505152823 | D44: 0.04435931824 | E44: 0.02532188361 | F44: =+F21/F14 -> 0.02723662907 | G44: =+G21/G14 -> 0.0300827268 | H44: =+H21/H14 -> 0.02502341377 | I44: =+I21/I14 -> 0.02932256424 | J44: =+J21/J14 -> 0.03306876898 | K44: =+K21/K14 -> 0.03898301835 | L44: =+L21/L14 -> 0.02002959878
B45: 3. Consumer loans | C45: =+C22/C15 -> 0.4987721027 | D45: 0.2349120314 | E45: 0.1630650684 | F45: =+F22/F15 -> 0.1097724443 | G45: =+G22/G15 -> 0.1172607414 | H45: =+H22/H15 -> 0.1032932246 | I45: =+I22/I15 -> 0.1068709911 | J45: =+J22/J15 -> 0.1134420058 | K45: =+K22/K15 -> 0.1197484115 | L45: =+L22/L15 -> 0.05353008031
B46: 4. Loans to Individuals | C46: =+C23/C16 -> 0.3848367419 | D46: 0.09049735739 | E46: 0.05734914818 | F46: =+F23/F16 -> 0.04514386117 | G46: =+G23/G16 -> 0.04907280035 | H46: =+H23/H16 -> 0.04233701473 | I46: =+I23/I16 -> 0.04657001546 | J46: =+J23/J16 -> 0.05042668833 | K46: =+K23/K16 -> 0.05653099285 | L46: =+L23/L16 -> 0.0271256886
B47: 5. Total Loans to Customers | C47: =+C24/(C17) -> 0.3652304461 | D47: 0.1578148558 | E47: 0.1127248906 | F47: =+F24/(F17) -> 0.08593629003 | G47: 0.08964782113 | H47: 0.05844580529 | I47: 0.0570775604 | J47: 0.0456102696 | K47: =+K24/(K17) -> 0.04531137243 | L47: =+L24/(L17) -> 0.03269614777
B49: NPEs / gross loans
B50: 1. Loans to Businesses | C50: =+C27/C11 -> 0.4634153305 | D50: =+D27/(D11) -> 0.2798548189 | E50: =+E27/(E11) -> 0.1905734513 | F50: =+F27/(F11+F13) -> 0.1402140129 | G50: 0.1416227607 | H50: 0.1003435085 | I50: 0.09373145467 | J50: 0.06546289332 | K50: =+K27/(K11+K13) -> 0.06292569677 | L50: =+L27/(L11+L13) -> 0.05781868597
B51: 2. Mortgage loans | C51: =+C28/C14 -> 0.4326577301 | D51: 0.1110407756 | E51: 0.0718951208 | F51: =+F28/F14 -> 0.06859462566 | G51: =+G28/G14 -> 0.06279829728 | H51: =+H28/H14 -> 0.05051907354 | I51: =+I28/I14 -> 0.05325367823 | J51: =+J28/J14 -> 0.05651393831 | K51: =+K28/K14 -> 0.05881818196 | L51: 0.03942553472
B52: 3. Consumer loans | C52: =+C29/C15 -> 0.5472372247 | D52: 0.2876418174 | E52: 0.2024426669 | F52: =+F29/F15 -> 0.1506145209 | G52: =+G29/G15 -> 0.1518291023 | H52: =+H29/H15 -> 0.130470095 | I52: =+I29/I15 -> 0.1322492844 | J52: =+J29/J15 -> 0.140749074 | K52: =+K29/K15 -> 0.1440405349 | L52: 0.07487953986
B53: 4. Loans to Individuals | C53: =+C30/C16 -> 0.4591828875 | D53: 0.1538007324 | E53: 0.1022492962 | F53: =+F30/F16 -> 0.08638992212 | G53: =+G30/G16 -> 0.08219196601 | H53: =+H30/H16 -> 0.06820456515 | I53: =+I30/I16 -> 0.07082299483 | J53: =+J30/J16 -> 0.07470589809 | K53: =+K30/K16 -> 0.07733452441 | L53: 0.04693542095
B54: 5. Total Loans to Customers | C54: =+C31/(C17) -> 0.4618880146 | D54: 0.2450290341 | E54: 0.1672626334 | F54: =+F31/(F17) -> 0.1273948227 | G54: =+G31/(G17) -> 0.1270737127 | H54: =+H31/(H17) -> 0.09255566614 | I54: =+I31/(I17) -> 0.08830766284 | J54: =+J31/(J17) -> 0.06755054043 | K54: =+K31/(K17) -> 0.06630339007 | L54: 0.05538521725
B56: LLRs / gross loans
B57: 1. Loans to Businesses | C57: =+C36/C11 -> 0.2206372351 | D57: 0.107423535 | E57: 0.07120932786 | F57: =+F36/(F11+F13) -> 0.05741680443 | G57: =+G36/G11 -> 0.06280989779 | H57: =+H36/H11 -> 0.04542763065 | I57: =+I36/I11 -> 0.0464761701 | J57: =+J36/(J11+J13) -> 0.03762744604 | K57: =+K36/(K11+K13) -> 0.03759867549 | L57: =+L36/(L11+L13) -> 0.03482263914
B58: 2. Mortgage loans | C58: =+C37/C14 -> 0.1580032558 | D58: 0.01645105279 | E58: 0.009746123613 | F58: =+F37/F14 -> 0.01007092405 | G58: =+G37/G14 -> 0.01149044881 | H58: =+H37/H14 -> 0.0115384212 | I58: =+I37/I14 -> 0.0120386887 | J58: =+J37/J14 -> 0.01256407079 | K58: =+K37/K14 -> 0.01321049801 | L58: 0.007331810871
B59: 3. Consumer loans | C59: =+C38/C15 -> 0.4039806242 | D59: 0.2093598274 | E59: 0.1696420715 | F59: =+F38/F15 -> 0.1117937983 | G59: =+G38/G15 -> 0.1192337298 | H59: =+H38/H15 -> 0.1073145366 | I59: =+I38/I15 -> 0.1051642625 | J59: =+J38/J15 -> 0.1126024501 | K59: =+K38/K15 -> 0.1122374246 | L59: 0.06631833257
B60: 4. Loans to Individuals | C60: =+C39/C16 -> 0.2149470261 | D60: 0.06315955906 | E60: 0.0469242231 | F60: =+F39/F16 -> 0.03214104131 | G60: =+G39/G16 -> 0.03496027477 | H60: =+H39/H16 -> 0.03272448805 | I60: =+I39/I16 -> 0.03275063421 | J60: =+J39/J16 -> 0.03416900034 | K60: =+K39/K16 -> 0.03472617344 | L60: 0.01982636727
B61: 5. Total Loans to Customers | C61: =+C40/C17 -> 0.2185838709 | D61: =+D40/D17 -> 0.09519443759 | E61: 0.06479991863 | F61: 0.05139691986 | G61: 0.05599212754 | H61: 0.04234943136 | I61: =+I40/I17 -> 0.04322652129 | J61: =+J40/J17 -> 0.03684631324 | K61: =+K40/K17 -> 0.03692530836 | L61: =+L40/L17 -> 0.03146951318
B63: LLRs / NPLs
B64: 1. Loans to Businesses | C64: =+C36/C20 -> 0.622986179 | D64: 0.5853733556 | E64: 0.5371041681 | F64: 0.5817950516 | G64: =+G36/G20 -> 0.6109865665 | H64: =+H36/H20 -> 0.7142974853 | I64: =+I36/I20 -> 0.7702760715 | J64: =+J36/J20 -> 0.8512027916 | K64: =+K36/K20 -> 0.8978581189 | L64: =+L36/L20 -> 1.015225686
B65: 2. Mortgage loans | C65: =+C37/C21 -> 0.4507742282 | D65: 0.3708590086 | E65: 0.3848893614 | F65: 0.3697566254 | G65: =+G37/G21 -> 0.381961678 | H65: =+H37/H21 -> 0.4611049997 | I65: =+I37/I21 -> 0.4105605704 | J65: =+J37/J21 -> 0.3799376624 | K65: =+K37/K21 -> 0.338878275 | L65: 0.3660488136
B66: 3. Consumer loans | C66: =+C38/C22 -> 0.8099503201 | D66: 0.8912264996 | E66: 1.040333612 | F66: 1.018414039 | G66: =+G38/G22 -> 1.016825652 | H66: =+H38/H22 -> 1.038931034 | I66: =+I38/I22 -> 0.9840300102 | J66: =+J38/J22 -> 0.9925992518 | K66: =+K38/K22 -> 0.9372769399 | L66: 1.238898432
B67: 4. Loans to Individuals | C67: =+C39/C23 -> 0.5585408114 | D67: 0.6979160595 | E67: 0.8182200537 | F67: 0.7119692573 | G67: =+G39/G23 -> 0.7124165428 | H67: =+H39/H23 -> 0.7729521851 | I67: =+I39/I23 -> 0.7032558156 | J67: =+J39/J23 -> 0.6775975474 | K67: =+K39/K23 -> 0.6142855748 | L67: 0.7309074275
B68: 5. Total Loans to Customers | C68: =+C40/C24 -> 0.598482063 | D68: 0.6032032734 | E68: 0.5748501353 | F68: 0.5980816701 | G68: =+G40/G24 -> 0.6245787888 | H68: =+H40/H24 -> 0.7245931706 | I68: =+I40/I24 -> 0.7573295177 | J68: =+J40/J24 -> 0.8078512485 | K68: =+K40/K24 -> 0.8149236358 | L68: 0.9624838192
B70: LLRs / NPEs
B71: 1. Loans to Businesses | C71: =+C36/C27 -> 0.4761112129 | D71: 0.3838545121 | E71: 0.3736581741 | F71: =+F36/F27 -> 0.4094940531 | G71: =+G36/G27 -> 0.4435014362 | H71: =+H36/H27 -> 0.4527211706 | I71: =+I36/I27 -> 0.4958439007 | J71: =+J36/J27 -> 0.574790452 | K71: =+K36/K27 -> 0.597509085 | L71: 0.6022730983
B72: 2. Mortgage loans | C72: =+C37/C28 -> 0.3651922636 | D72: 0.148153259 | E72: 0.1355602926 | F72: 0.1468179753 | G72: =+G37/G28 -> 0.1829738911 | H72: =+H37/H28 -> 0.2283973238 | I72: =+I37/I28 -> 0.2260630458 | J72: =+J37/J28 -> 0.2223180893 | K72: =+K37/K28 -> 0.2245988837 | L72: 0.1859660477
B73: 3. Consumer loans | C73: =+C38/C29 -> 0.7382184652 | D73: 0.7278490635 | E73: 0.837975878 | F73: 0.7422511302 | G73: =+G38/G29 -> 0.785315384 | H73: =+H38/H29 -> 0.8225221006 | I73: =+I38/I29 -> 0.7951972142 | J73: =+J38/J29 -> 0.8000226708 | K73: =+K38/K29 -> 0.7792072191 | L73: 0.8856669351
B74: 4. Loans to Individuals | C74: =+C39/C30 -> 0.4681076581 | D74: 0.4106583765 | E74: 0.458919766 | F74: 0.3720461892 | G74: =+G39/G30 -> 0.4253490514 | H74: =+H39/H30 -> 0.4797990864 | I74: =+I39/I30 -> 0.4624293887 | J74: =+J39/J30 -> 0.4573802231 | K74: =+K39/K30 -> 0.4490384302 | L74: 0.4224180134
B75: 5. Total Loans to Customers | C75: =+C40/C31 -> 0.4732399715 | D75: 0.3885026848 | E75: 0.3874141959 | F75: =+F40/F31 -> 0.4034459075 | G75: 0.4406271475 | H75: 0.4575563348 | I75: 0.4894990978 | J75: 0.5454628935 | K75: =+K40/K31 -> 0.5569143346 | L75: 0.568193369
B78: * Gross loans, NPEs & NPLs include loans and advances to customers fair valued through P&L. LLRs include ECL allowance for impairment losses on loans and advances to customers mandatorily measured at FVTPL

Sheet IFRS9 Stages
L2: Back to Cover
B5: IFRS9 STAGES
B9: LOAN BOOK EXPOSURE | C9: 2021-03-31 | D9: 2021-06-30 | E9: 2021-09-30 | F9: 2021-12-31 | G9: 2022-03-31 | H9: 2022-06-30 | I9: 2022-09-30 | J9: 2022-12-31 | K9: 2023-03-31 | L9: 2023-06-30
B10: Corporate and Public loans | C10: 30574.86719 | D10: 26483.12977 | E10: 26260.78427 | F10: 29303.28121 | G10: 27969.93011 | H10: 27955.28299 | I10: 28703.22039 | J10: 30012.8782 | K10: 28129.29229 | L10: 28654.61796
B11: Stage 1 | C11: 13658.86996 | D11: 16487.22897 | E11: 18552.00444 | F11: 22201.70713 | G11: 21010.98551 | H11: 22625.14255 | I11: 23610.51993 | J11: 26169.17592 | K11: 24426.34822 | L11: 25064.45772
B12: Stage 2 | C12: 2549.956754 | D12: 2377.719618 | E12: 2579.121208 | F12: 2855.13229 | G12: 2844.330884 | H12: 2398.010718 | I12: 2281.28379 | J12: 1756.801534 | K12: 1814.34096 | L12: 1817.322958
B13: Stage 3 & POCI | C13: 14366.04048 | D13: 7618.181175 | E13: 5129.658624 | F13: 4246.441793 | G13: 4114.613716 | H13: 2932.12972 | I13: 2811.416666 | J13: 2086.900749 | K13: 1888.603106 | L13: 1772.837284
B14: Mortgages | C14: 13301.64006 | D14: 7697.03262 | E14: 7248.347406 | F14: 7194.967238 | G14: 7114.716119 | H14: 6984.714555 | I14: 6944.80732 | J14: 6879.443845 | K14: 6756.481908 | L14: 6518.346134
B15: Stage 1 | C15: 5107.954625 | D15: 4991.0852 | E15: 4764.528367 | F15: 4646.70094 | G15: 4484.104736 | H15: 4424.646467 | I15: 4515.00839 | J15: 4551.419592 | K15: 4494.753811 | L15: 4455.517915
B16: Stage 2 | C16: 2105.247863 | D16: 1592.288506 | E16: 1716.319168 | F16: 1803.248426 | G16: 1922.780164 | H16: 1944.714306 | I16: 1798.868853 | J16: 1677.219435 | K16: 1600.562641 | L16: 1544.219002
B17: Stage 3 & POCI | C17: 6088.437572 | D17: 1113.658914 | E17: 767.4998709 | F17: 745.0178725 | G17: 707.8312201 | H17: 615.3537816 | I17: 630.9300779 | J17: 650.8048175 | K17: 661.1654558 | L17: 518.6092168
B18: Consumer loans/Credit cards | C18: 4007.023033 | D18: 2459.16392 | E18: 2195.9914 | F18: 1993.631624 | G18: 1981.476942 | H18: 1983.95009 | I18: 1986.430285 | J18: 1895.035972 | K18: 1875.528453 | L18: 1751.836634
B19: Stage 1 | C19: 1217.324397 | D19: 1261.085667 | E19: 1163.339406 | F19: 1158.964998 | G19: 1153.85074 | H19: 1204.861943 | I19: 1263.951694 | J19: 1211.537463 | K19: 1207.801759 | L19: 1243.880135
B20: Stage 2 | C20: 510.7389499 | D20: 416.086008 | E20: 518.6796166 | F20: 467.3947038 | G20: 461.7022782 | H20: 456.2241836 | I20: 397.6818661 | J20: 362.6725332 | K20: 344.7112309 | L20: 325.8106189
B21: Stage 3 & POCI | C21: 2278.959686 | D21: 781.992246 | E21: 513.9723775 | F21: 367.2719223 | G21: 365.9239237 | H21: 322.8639624 | I21: 324.7967255 | J21: 320.8259756 | K21: 323.015463 | L21: 182.1458798
B22: Total loans | C22: 47883.53029 | D22: 36639.32631 | E22: 35705.12308 | F22: 38491.88007 | G22: 37066.12317 | H22: 36923.94763 | I22: 37634.45799 | J22: 38787.35802 | K22: 36761.30265 | L22: 36924.80073
B23: Stage 1 | C23: 19984.14898 | D23: 22739.39984 | E23: 24479.87221 | F23: 28007.37306 | G23: 26648.94099 | H23: 28254.65096 | I23: 29389.48001 | J23: 31932.13297 | K23: 30128.90379 | L23: 30763.85577
B24: Stage 2 | C24: 5165.943566 | D24: 4386.094131 | E24: 4814.119993 | F24: 5125.77542 | G24: 5228.813325 | H24: 4798.949208 | I24: 4477.834509 | J24: 3796.693502 | K24: 3759.614832 | L24: 3687.352579
B25: Stage 3 & POCI | C25: 22733.43774 | D25: 9513.832335 | E25: 6411.130872 | F25: 5358.731588 | G25: 5188.36886 | H25: 3870.347464 | I25: 3767.143469 | J25: 3058.531542 | K25: 2872.784025 | L25: 2473.592381
B27: LOAN LOSS RESERVES | C27: 2021-03-31 | D27: 2021-06-30 | E27: 2021-09-30 | F27: 2021-12-31 | G27: 2022-03-31 | H27: 2022-06-30 | I27: 2022-09-30 | J27: 2022-12-31 | K27: 2023-03-31 | L27: 2023-06-30
B28: Corporate and Public loans | C28: 6732.309587 | D28: 2847.638403 | E28: 1863.456585 | F28: 1675.269051 | G28: 1748.929494 | H28: 1261.363052 | I28: 1326.561736 | J28: 1121.031754 | K28: 1049.155905 | L28: 989.0240975
B29: Stage 1 | C29: 86.5703669 | D29: 75.21756822 | E29: 65.69468326 | F29: 69.49903441 | G29: 55.50539797 | H29: 59.96358264 | I29: 46.64762989 | J29: 26.42899942 | K29: 32.97803901 | L29: 37.92600215
B30: Stage 2 | C30: 160.8064291 | D30: 133.3788922 | E30: 118.8923813 | F30: 115.0927666 | G30: 111.8530105 | H30: 94.63815991 | I30: 90.33374202 | J30: 67.51506273 | K30: 75.7365771 | L30: 71.29887376
B31: Stage 3 & POCI | C31: 6484.932791 | D31: 2639.041942 | E31: 1678.86952 | F31: 1490.67725 | G31: 1581.571086 | H31: 1106.761309 | I31: 1189.580364 | J31: 1027.087691 | K31: 940.4412886 | L31: 879.7992216
B32: Mortgages | C32: 2101.748069 | D32: 126.6290548 | E32: 70.64527131 | F32: 72.46201509 | G32: 81.75361119 | H32: 80.59492258 | I32: 83.60878765 | J32: 86.43632532 | K32: 89.259122 | L32: 47.79273894
B33: Stage 1 | C33: 4.97671045 | D33: 1.51608341 | E33: 2.38163678 | F33: 3.42473528 | G33: 3.3515154 | H33: 3.29183378 | I33: 3.098264652 | J33: 3.193307762 | K33: 3.188216281 | L33: 2.999996891
B34: Stage 2 | C34: 91.15065068 | D34: 23.07561695 | E34: 23.16761546 | F34: 20.95303452 | G34: 27.606303 | H34: 27.4617187 | I34: 26.37721099 | J34: 19.88784089 | K34: 20.47533581 | L34: 15.57540061
B35: Stage 3 & POCI | C35: 2005.620708 | D35: 102.0373544 | E35: 45.09601907 | F35: 48.08424529 | G35: 50.79579279 | H35: 49.8413701 | I35: 54.13331201 | J35: 63.35517666 | K35: 65.59556991 | L35: 29.21734143
B36: Consumer loans/Credit cards | C36: 1618.759666 | D36: 514.8501338 | E36: 372.5325314 | F36: 222.8756517 | G36: 236.2588863 | H36: 212.9066846 | I36: 208.901476 | J36: 213.3856934 | K36: 210.5044835 | L36: 116.1788844
B37: Stage 1 | C37: 20.78912683 | D37: 18.97966163 | E37: 19.87080323 | F37: 17.68988776 | G37: 16.73098927 | H37: 16.24501304 | I37: 14.90512468 | J37: 7.620737693 | K37: 6.062928504 | L37: 6.383483918
B38: Stage 2 | C38: 55.09687647 | D38: 40.28232242 | E38: 43.87960871 | F38: 39.43422306 | G38: 41.39106564 | H38: 39.3194168 | I38: 31.91699078 | J38: 32.67573909 | K38: 30.13791534 | L38: 26.12386297
B39: Stage 3 & POCI | C39: 1542.873663 | D39: 455.5881498 | E39: 308.7821195 | F39: 165.7515409 | G39: 178.1368314 | H39: 157.3422547 | I39: 162.0793605 | J39: 173.0892167 | K39: 174.3036396 | L39: 83.67153748
B40: Total loans | C40: 10452.81732 | D40: 3489.117591 | E40: 2306.634388 | F40: 1970.606718 | G40: 2066.941992 | H40: 1554.864659 | I40: 1619.072 | J40: 1420.853772 | K40: 1348.91951 | L40: 1152.995721
B41: Stage 1 | C41: 112.3362042 | D41: 95.71331326 | E41: 87.94712327 | F41: 90.61365745 | G41: 75.58790264 | H41: 79.50042946 | I41: 64.65101921 | J41: 37.24304489 | K41: 42.22918378 | L41: 47.30948297
B42: Stage 2 | C42: 307.0539563 | D42: 196.7368315 | E42: 185.9396054 | F42: 175.4800242 | G42: 180.8503792 | H42: 161.4192954 | I42: 148.6279438 | J42: 120.0786427 | K42: 126.3498282 | L42: 112.9981374
B43: Stage 3 & POCI | C43: 10033.42716 | D43: 3196.667446 | E43: 2032.747659 | F43: 1704.513036 | G43: 1810.50371 | H43: 1313.944934 | I43: 1405.793037 | J43: 1263.532085 | K43: 1180.340498 | L43: 992.6881005
B45: * Loan figures do not include loans and advances to customers fair valued through P&L. LLRs do not include ECL allowance for impairment losses on loans and advances to customers mandatorily measured at FVTPL

Sheet NPE flow decomposition
L2: Back to Cover
B5: NPE FLOW DECOMPOSITION
B9: Group data, amounts in €mn | C9: Q1.21 | D9: Q2.21 | E9: Q3.21 | F9: Q4.21 | G9: Q1.22 | H9: Q2.22 | I9: Q3.22 | J9: Q4.22 | K9: Q1.23 | L9: Q2.23
B11: NPEs | Beginning of period | C11: 22486.78225 | D11: 22154.89445 | E11: 9007.787381 | F11: 5985.519052 | G11: 4915.03697 | H11: 4721.739548 | I11: 3425.745327 | J11: 3331.291721 | K11: 2624.316229 | L11: 2441.552917
B13: Re-defaults | C13: 217.247 | D13: 163.24046 | E13: 132 | F13: 50.76158417 | G13: 40.4 | H13: 38.72 | I13: 31.74 | J13: 39.03 | K13: 34.39 | L13: 23.21
B14: Defaults | C14: 234.853 | D14: 230.23247 | E14: 154 | F14: 70.21601924 | G14: 75.1 | H14: 70.05 | I14: 67.31 | J14: 75.85 | K14: 58.4 | L14: 193.13
B15: Total inflows | C15: 452.1 | D15: 393.47293 | E15: 286 | F15: 120.9776034 | G15: 115.5 | H15: 108.77 | I15: 99.05 | J15: 114.88 | K15: 92.79 | L15: 216.34
B16: o/w business | C16: 220.33 | D16: 178.2 | E16: 186.798 | F16: 56.06 | G16: 50.2 | H16: 30.96 | I16: 26.71 | J16: 46.61 | K16: 22.16 | L16: 151.86
B17: o/w mortgage | C17: 168.46 | D17: 143.85 | E17: 72.54 | F17: 43.32 | G17: 42.56 | H17: 52.25 | I17: 50.54 | J17: 47.81 | K17: 51.56 | L17: 47.18
B18: o/w consumer | C18: 63.31 | D18: 71.42 | E18: 27.11 | F18: 21.6 | G18: 22.74 | H18: 25.56 | I18: 21.8 | J18: 20.46 | K18: 19.05 | L18: 17.31
B20: Curings, Collections, Liquidations | C20: -371.022 | D20: -345.20358 | E20: -206 | F20: -458.7432159 | G20: -224.1 | H20: -364.17 | I20: -169.97 | J20: -270.57 | K20: -158.27 | L20: -142.7
B21: o/w business | C21: -197.31 | D21: -267.1281703 | E21: -131.2148297 | F21: -367.259 | G21: -113.034994 | H21: -292.61 | I21: -125.33 | J21: -225.51 | K21: -101.48 | L21: -110.25
B22: o/w mortgage | C22: -148.24 | D22: -60.17 | E22: -53.09 | F22: -70.86 | G22: -89.28059027 | H22: -54.17 | I22: -31.96 | J22: -28.74 | K22: -41.53 | L22: -20.08
B23: o/w consumer | C23: -25.47 | D23: -17.12 | E23: -21.71 | F23: -20.98 | G23: -21.81255403 | H23: -17.39 | I23: -12.67 | J23: -16.32 | K23: -15.23 | L23: -12.39
B25: Write-offs | C25: -166.37 | D25: -98.84857 | E25: -88 | F25: -341.1457621 | G25: -83.1 | H25: -159.02 | I25: -18.75 | J25: -97.63 | K25: -95.11 | L25: -40.4
B26: Sales | C26: -246.596 | D26: -13097.28525 | E26: -3015 | F26: -391.207084 | G26: -1.6 | H26: -881.57 | I26: -4.79 | J26: -453.65 | K26: -22.18 | L26: -426.21
B28: NPE | End of period | C28: 22154.89445 | D28: 9007.787381 | E28: 5985.519052 | F28: 4915.03697 | G28: 4721.739548 | H28: 3425.745327 | I28: 3331.291721 | J28: 2624.316229 | K28: 2441.552917 | L28: 2048.579632
B31: * Q2.23 business inflow elevated due to one corporate client defaulting

Sheet Capital Adequacy
L2: Back to Cover
B5: CAPITAL ADEQUACY
B8: amounts in € mn
C10: 2021-03-31 | D10: 2021-06-30 | E10: 2021-09-30 | F10: 2021-12-31 | G10: 2022-03-31 | H10: 2022-06-30 | I10: 2022-09-30 | J10: 2022-12-31 | K10: 2023-03-31 | L10: 2023-06-30
B12: Phased in Data
B13: Reported
B14: Common Equity Tier I | C14: 5109.753702 | D14: 4063.605723 | E14: 3276.944063 | F14: 3581.735271 | G14: 3561.697342 | H14: 3474.086634 | I14: 3792.489941 | J14: 4064.233986 | K14: 3779.851098 | L14: 3865.996059
B15: Total Regulatory Capital | C15: 5999.192159 | D15: 5553.579459 | E15: 4767.543343 | F15: 5072.891409 | G15: 5053.459665 | H15: 4966.541798 | I15: 5285.087088 | J15: 5557.307684 | K15: 5273.555192 | L15: 5360.413784
B16: Risk Weighted Assets | C16: 42390.54931 | D16: 37390.63763 | E16: 33097.29054 | F16: 32207.02932 | G16: 31670.09759 | H16: 31539.61944 | I16: 31891.5107 | J16: 31178.18794 | K16: 31082.55432 | L16: 31617.01301
B17: Common Equity Tier I ratio | C17: 0.1205399266 | D17: 0.1086797653 | E17: 0.09900943579 | F17: 0.1112097373 | G17: 0.1124624682 | H17: 0.1101499224 | I17: 0.1189184789 | J17: 0.1303550416 | K17: 0.1216068364 | L17: 0.1222758158
B18: Total Capital Ratio | C18: 0.1415219255 | D18: 0.1485286107 | E18: 0.1440463332 | F18: 0.157508827 | G18: 0.1595656487 | H18: 0.1574699342 | I18: 0.1657208132 | J18: 0.1782434468 | K18: 0.1696628642 | L18: 0.1695420684
B20: Pro-Forma(1) | I20: 1 Oct.22
B21: Common Equity Tier I | C21: 6604.654702 | D21: 4063.605723 | E21: 3629.944063 | F21: 3581.735271 | G21: 3561.697342 | H21: 3586.891039 | I21: 3888.974504 | J21: 4064.233986 | K21: 3779.851098 | L21: 3865.996059
B22: Total Regulatory Capital | C22: 8086.561609 | D22: 5553.579459 | E22: 5120.543343 | F22: 5072.891409 | G22: 5053.459665 | H22: 5079.346203 | I22: 5381.571651 | J22: 5557.307684 | K22: 5273.555192 | L22: 5360.413784
B23: Risk Weighted Assets | C23: 42872.80252 | D23: 35101.06942 | E23: 32121.81644 | F23: 32000.99204 | G23: 31109.1885 | H23: 30466.18685 | I23: 31996.76388 | J23: 31178.18794 | K23: 31082.55432 | L23: 31336.37135
B24: Common Equity Tier I ratio | C24: 0.1540523202 | D24: 0.1157687156 | E24: 0.1130055665 | F24: 0.1119257574 | G24: 0.1144902042 | H24: 0.1177335075 | I24: 0.1215427447 | J24: 0.1303550416 | K24: 0.1216068364 | L24: 0.1233708912
B25: Total Capital Ratio | C25: 0.1886175182 | D25: 0.1582168165 | E25: 0.1594101427 | F25: 0.1585229421 | G25: 0.1624426708 | H25: 0.1667207724 | I25: 0.1681911231 | J25: 0.1782434468 | K25: 0.1696628642 | L25: 0.17106045
B28: Fully Loaded Data
B29: Reported
B30: Common Equity Tier I | C30: 4193.05761 | D30: 3229.111338 | E30: 2442.473656 | F30: 2705.978446 | G30: 3050.607424 | H30: 2954.5648 | I30: 3269.56343 | J30: 3544.599676 | K30: 3779.851098 | L30: 3865.996059
B31: Total Regulatory Capital | C31: 5082.496067 | D31: 4719.085074 | E31: 3933.072936 | F31: 4197.134584 | G31: 4542.369747 | H31: 4447.019964 | I31: 4762.160577 | J31: 5037.673374 | K31: 5273.555192 | L31: 5360.413784
B32: Risk Weighted Assets | C32: 41473.9984 | D32: 36556.28655 | E32: 32262.94846 | F32: 31357.20263 | G32: 31217.72604 | H32: 31084.08547 | I32: 31434.6998 | J32: 30722.61179 | K32: 31082.55432 | L32: 31617.01301
B33: Common Equity Tier I ratio | C33: 0.101100877 | D33: 0.08833258633 | E33: 0.0757052214 | F33: 0.0862952757 | G33: 0.09772035991 | H33: 0.09505072306 | I33: 0.1040112821 | J33: 0.115374295 | K33: 0.1216068364 | L33: 0.1222758158
B34: Total Capital Ratio | C34: 0.1225465656 | D34: 0.1290909312 | E34: 0.1219068041 | F34: 0.1338491393 | G34: 0.1455061058 | H34: 0.1430642046 | I34: 0.1514937508 | J34: 0.1639728226 | K34: 0.1696628642 | L34: 0.1695420684
B36: Pro-Forma(1) | I36: 1 Oct.22
B37: Common Equity Tier I | C37: 5687.95861 | D37: 3229.111338 | E37: 2795.473656 | F37: 2705.978446 | G37: 3050.607424 | H37: 3067.369205 | I37: 3366.047993 | J37: 3544.599676 | K37: 3779.851098 | L37: 3865.996059
B38: Total Regulatory Capital | C38: 7169.865517 | D38: 4719.085074 | E38: 4286.072936 | F38: 4197.134584 | G38: 4542.369747 | H38: 4559.824369 | I38: 4858.64514 | J38: 5037.673374 | K38: 5273.555192 | L38: 5360.413784
B39: Risk Weighted Assets | C39: 41956.25161 | D39: 34266.71834 | E39: 31287.47435 | F39: 31151.16535 | G39: 30656.81695 | H39: 30010.65289 | I39: 31539.95298 | J39: 30722.61179 | K39: 31082.55432 | L39: 31336.37135
B40: Common Equity Tier I ratio | C40: 0.1355687982 | D40: 0.09423462457 | E40: 0.0893480127 | F40: 0.08686604227 | G40: 0.09950828976 | H40: 0.102209346 | I40: 0.1067233041 | J40: 0.115374295 | K40: 0.1216068364 | L40: 0.1233708912
B41: Total Capital Ratio | C41: 0.1708890866 | D41: 0.1377162828 | E41: 0.1369900583 | F41: 0.1347344325 | G41: 0.1481683423 | H41: 0.1519401922 | I41: 0.1540473172 | J41: 0.1639728226 | K41: 0.1696628642 | L41: 0.17106045
B43: Capital figures include profit for the period throughout the time horizon presented
B44: (1) Pro-forma ratios adjusted for the RWA relief of the sale of NPE loan portfolios and any other regulatory capital adjustments illustrated in quarterly reporting. For June.21 the ratios are pro forma for the RWA relief related with Sunrise 1 NPE perimeter, for which associated losses have been booked in regulatory capital. For Sep.21 capital ratio is illustrated pro forma for the Sunrise 2 portfolio RWA relief, transaction for which loss has been booked in Q3.21, as well as Thalis signed transaction (cards merchant acquiring business carve-out). For Dec.21 capital ratio is illustrated pro forma for the Dory shipping NPE portfolio RWA relief, transaction for which loss has been booked in Q4.21. For Mar.22 capital ratio is illustrated pro forma for the Sunshine leasing NPE portfolio RWA relief, transaction for which loss has been booked in 2021, and for the RWA relief resulting from the synthetic securitization of a shipping portfolio, transaction which is expected to close in the forthcoming period, subject to regulatory approvals. For Jun.22 capital ratio is illustrated pro forma for the expected impact of the Iolcus and Natech transaction developments concluded post 30 June 2022, the RWA relief of the Sunrise 3 and Solar NPE securitization portfolios, classified as held for sale as at 30 June 2022, for which 100% sale scenarios are booked, the RWA relief expected from the mortgage and blended portfolio signed synthetic securitizations, concluded in the following period, as well as other financial developments post 30 Jun.22. For June 2023 pro-forma for the RWA relief from the Sunrise 3, Solar, NPE securitizations and the RWA of the Delta and Wheel NPE portfolios, classified as HFS as at 30 June 2023

Sheet Other Information
L2: Back to Cover
B5: OTHER INFORMATION
B10: Branches PER COUNTRY (#) | C10: 2021-03-31 | D10: 2021-06-30 | E10: 2021-09-30 | F10: 2021-12-31 | G10: 2022-03-31 | H10: 2022-06-30 | I10: 2022-09-30 | J10: 2022-12-31 | K10: 2023-03-31 | L10: 2023-06-30
B11: Group (continued operations) | C11: 496 | D11: 490 | E11: 430 | F11: 430 | G11: 428 | H11: 424 | I11: 419 | J11: 405 | K11: 403 | L11: 403
B12: Greece | C12: 480 | D12: 474 | E12: 414 | F12: 414 | G12: 412 | H12: 408 | I12: 403 | J12: 389 | K12: 387 | L12: 387
B13: Abroad | C13: 16 | D13: 16 | E13: 16 | F13: 16 | G13: 16 | H13: 16 | I13: 16 | J13: 16 | K13: 16 | L13: 16
B15: Discontinued operations | C15: 0 | D15: 0 | E15: 0 | F15: 0 | G15: 0 | H15: 0 | I15: 0 | J15: 0 | K15: 0 | L15: 0
B18: Employees PER COUNTRY (#) | C18: 2021-03-31 | D18: 2021-06-30 | E18: 2021-09-30 | F18: 2021-12-31 | G18: 2022-03-31 | H18: 2022-06-30 | I18: 2022-09-30 | J18: 2022-12-31 | K18: 2023-03-31 | L18: 2023-06-30
B19: Group | C19: 11170.6 | D19: 11067.6 | E19: 10703.35 | F19: 10424.65 | G19: 10354.7 | H19: 10262.7 | I19: 9417.766 | J19: 8676.151 | K19: 8801.071 | L19: 8897.225
B20: Group (continued operations) | C20: 10219.1 | D20: 10132.1 | E20: 9764.35 | F20: 9270.15 | G20: 9251.7 | H20: 9205.7 | I20: 9057.766 | J20: 8604.151 | K20: 8741.071 | L20: 8829.225
B21: Greece | C21: 9866 | D21: 9793 | E21: 9411 | F21: 8904 | G21: 8879.6 | H21: 8838.6 | I21: 8720.81 | J21: 8270.805 | K21: 8236.475 | L21: 8233.375
B22: Piraeus Bank Greece | C22: 9492 | D22: 9421 | E22: 9045 | F22: 8583 | G22: 8546.6 | H22: 8506.6 | I22: 8391.6 | J22: 7933.6 | K22: 7841.1 | L22: 7821.1
B23: Affiliate companies in Greece | C23: 374 | D23: 372 | E23: 366 | F23: 321 | G23: 333 | H23: 332 | I23: 329.21 | J23: 337.205 | K23: 395.375 | L23: 412.275
B24: Abroad | C24: 353.1 | D24: 339.1 | E24: 353.35 | F24: 366.15 | G24: 372.1 | H24: 367.1 | I24: 336.956 | J24: 333.346 | K24: 504.596 | L24: 595.85
B25: Discontinued & held for sale operations | C25: 0 | D25: 0 | E25: 0 | F25: 223 | G25: 161 | H25: 128 | I25: 198 | J25: 54 | K25: 43 | L25: 52
B26: Other Discontinued (Imithea SA until 30.06.22) | C26: 951.5 | D26: 935.5 | E26: 939 | F26: 931.5 | G26: 942 | H26: 929 | I26: 162 | J26: 18 | K26: 17 | L26: 16
B28: =+B25 -> Discontinued & held for sale operations | C28: 951.5 | D28: 935.5 | E28: 939 | F28: 1154.5 | G28: 1103 | H28: 1057 | I28: 360 | J28: 72 | K28: 60 | L28: 68
B31: Number of SHARES | C31: 2021-03-31 | D31: 2021-06-30 | E31: 2021-09-30 | F31: 2021-12-31 | G31: 2022-03-31 | H31: 2022-06-30 | I31: 2022-09-30 | J31: 2022-12-31 | K31: 2023-03-31 | L31: 2023-06-30
B32: Piraeus Bank's shares (end of the period)* | C32: 831059164 | D32: 1250367223 | E32: 1250367223 | F32: 1250367223 | G32: 1250367223 | H32: 1250367223 | I32: 1250367223 | J32: 1250367223 | K32: 1250367223 | L32: 1250367223
B33: PB's shares minus treasury stock (average of period)** | C33: 830729018.3 | D33: 433269267.4 | E33: 724463488 | F33: 859533251 | G33: 1249734974 | H33: 1249851815 | I33: 1249714516 | J33: 1249647205 | K33: 1250020910 | L33: 1250054239
B34: Adjusted PB's shares minus treasury stock (avg of period)*** | C34: 830729018.3 | D34: 433269267.4 | E34: 724463488 | F34: 859533251 | G34: 1249734974 | H34: 1249851815 | I34: 1249714516 | J34: 1249647205 | K34: 1250020910 | L34: 1250054239
B36: * Outstanding number of shares; post CoCo conversion to common shares in early January 2021, number of shares totaled 831,059,164
B37: ** Weighted average number of shares in issue for the basic EPS calculation
B38: *** Weighted average number of shares in issue for the diluted EPS calculation
B39: Note: 1,250,367,223 shares οutstanding post April 2021 share capital increase
B41: Share & stock market data | C41: 2021-03-31 | D41: 2021-06-30 | E41: 2021-09-30 | F41: 2021-12-31 | G41: 2022-03-31 | H41: 2022-06-30 | I41: 2022-09-30 | J41: 2022-12-31 | K41: 2023-03-31 | L41: 2023-06-30
B42: Market capitalization (€mn) | C42: 363.0066 | D42: 1839.915369 | E42: 1744.262276 | F42: 1612.973718 | G42: 1769.269621 | H42: 1171.844161 | I42: 1296.6381 | J42: 1798.028067 | K42: 2498.233712 | L42: 3758.603872
B43: Tangible book value per share (€) | C43: 5.054989353 | D43: 4.436236729 | E43: 3.874874446 | F43: 3.935269503 | G43: 4.241886625 | H43: 4.248667033 | I43: 4.339625912 | J43: 4.511301877 | K43: 4.658711371 | L43: 4.73475943
B44: Price/tangible book ratio | C44: =(C42/(C32/1000000))/C43 -> 0.08640966735 | D44: =(D42/(D32/1000000))/D43 -> 0.3317000624 | E44: 0.3600116648 | F44: 0.327804741 | G44: 0.3335779866 | H44: =(H42/(H32/1000000))/H43 -> 0.2205868317 | I44: =(I42/(I32/1000000))/I43 -> 0.2389620329 | J44: =(J42/(J32/1000000))/J43 -> 0.3187549934 | K44: =(K42/(K32/1000000))/K43 -> 0.4288739612 | L44: =(L42/(L32/1000000))/L43 -> 0.6348791411
B45: EPS reported (€) | C45: -0.3231404732 | D45: -1.637419926 | E45: -0.5186433639 | F45: 0.05180790483 | G45: 0.4063910111 | H45: 0.06345095948 | I45: 0.08199271231 | J45: 0.1251128445 | K45: 0.1332696483 | L45: 0.0852213638
B46: Core EPS (€) | C46: 0.004889588899 | D46: 0.06348872685 | E46: 0.05981543827 | F46: -0.0136059047 | G46: 0.0590502996 | H46: 0.09562898395 | I46: 0.06680080324 | J46: 0.1400813228 | K46: 0.1457931691 | L46: 0.1537194132
B47: EPS normalized (€) | C47: 0.02424259251 | D47: 0.06164641182 | E47: 0.05951041175 | F47: -0.01589415631 | G47: 0.1168957059 | H47: 0.07566045027 | I47: 0.07108434483 | J47: 0.1557311252 | K47: 0.1524104251 | L47: 0.1799293133
B48: Price/earnings normalized (%) | C48: 2.993904119 | D48: 5.815549169 | E48: 4.981621354 | F48: -59.75276162 | G48: 2.776848409 | H48: 2.719442452 | I48: 3.177830965 | J48: 2.162691666 | K48: 3.066160161 | L48: 3.946410124
B50: * For simplification, all EPS figures are calculated with the current number of shares
B52: RATINGS (outlook) | C52: 2021-03-31 | D52: 2021-06-30 | E52: 2021-09-30 | F52: 2021-12-31 | G52: 2022-03-31 | H52: 2022-06-30 | I52: 2022-09-30 | J52: 2022-12-31 | K52: 2023-03-31 | L52: 2023-06-30
B53: Moody's* | C53: Caa2 (Positive) | D53: Caa2 (Positive) | E53: B3 (Positive) | F53: B3 (Positive) | G53: B2 (Positive) | H53: B2 (Positive) | I53: B2 (Positive) | J53: Ba3 (Stable) | K53: Ba3 (Stable) | L53: Ba3 (Stable)
B54: S&P Global | C54: B (Stable) | D54: B (Stable) | E54: B (Stable) | F54: B (Stable) | G54: B (Stable) | H54: B (Positive) | I54: B (Positive) | J54: B (Positive) | K54: B (Positive) | L54: B+ (Positive)
B55: Fitch | C55: CCC+ | D55: CCC+ | E55: CCC+ | F55: CCC+ | G55: B- (Positive) | H55: B- (Positive) | I55: B- (Positive) | J55: B- (Positive) | K55: B (Positive) | L55: B (Positive)
B56: DBRS | F56: B (Stable) | G56: B (Stable) | H56: B (Stable) | I56: B (Stable) | J56: B high (Stable) | K56: B high (Stable) | L56: B high (Stable)
B58: * Moody’s Rating refers to Long Term Deposit Rating
